{"text_format":"3","workbook":"xlsx","n_sheets":6,"sheets":["Отчет","Departments","EnterPlans","StudentPetitions","Template","Строки подключения"],"not_rendered":{"macros":1,"defined_names":13},"read":"whole","date_system":"1900"}

{"sheet":"Отчет","index":0,"n_rows":214,"n_cols":10,"rows_kept":214,"merged":[[0,6,2,15],[18,0,18,3]]}
[{"$nulls":6},"Федеральное государственное бюджетное образовательное учреждение высшего образования «Ульяновский государственный педагогический университет имени И.Н. Ульянова»"]
[]
[]
[]
[{"$nulls":5},"Сводка приема заявлений с пофамильным перечнем"]
[]
[{"$nulls":9},"25 августа 2020 года"]
[]
["Институт / факультет",{"$nulls":6},"Физико-математического и технологического образования"]
["Направление подготовки / специальность",{"$nulls":6},"01.06.01 Математика и механика"]
[]
["Пофамильный список подавших заявления:"]
[null,"Очная, 1 курс, Бюджетные места"]
[null,"План",1]
[null,"Подано             ",0]
[null,"Конкурс",{"$f":"IF(C14=0,\"ошибка вычисления\",C15/C14)","v":{"v":0,"d":"0.00"}}]
[]
[]
["Пофамильный список подавших заявления:"]
[null,"Очная, 1 курс,С оплатой обучения"]
[null,"План",1]
[null,"Подано             ",0]
[null,"Конкурс",{"$f":"IF(C21=0,\"ошибка вычисления\",C22/C21)","v":{"v":0,"d":"0.00"}}]
[]
[]
["Пофамильный список подавших заявления:"]
[]
[null,"Заочная, 1 курс, С оплатой обучения"]
[null,"План",1]
[null,"Подано             ",0]
[null,"Конкурс",{"$f":"IF(C29=0,\"ошибка вычисления\",C30/C29)","v":{"v":0,"d":"0.00"}}]
[]
[]
[]
["Институт / факультет",{"$nulls":6},"Физико-математического и технологического образования"]
["Направление подготовки / специальность",{"$nulls":6},"03.06.01 Физика и астрономия"]
[]
["Пофамильный список подавших заявления:"]
[null,"Очная, 1 курс, Бюджетные места"]
[null,"План",1]
[null,"Подано             ",0]
[null,"Конкурс",{"$f":"IF(C40=0,\"ошибка вычисления\",C41/C40)","v":{"v":0,"d":"0.00"}}]
[]
["Пофамильный список подавших заявления:"]
[null,"Очная, 1 курс, С оплатой обучения"]
[null,"План",1]
[null,"Подано             ",0]
[null,"Конкурс",{"$f":"IF(C46=0,\"ошибка вычисления\",C47/C46)","v":{"v":0,"d":"0.00"}}]
[]
["Пофамильный список подавших заявления:"]
[]
[null,"Заочная, 1 курс, С оплатой обучения"]
[null,"План",1]
[null,"Подано             ",0]
[null,"Конкурс",{"$f":"IF(C53=0,\"ошибка вычисления\",C54/C53)","v":{"v":0,"d":"0.00"}}]
[]
["Институт / факультет",{"$nulls":6},"Естественно-географический"]
["Направление подготовки / специальность",{"$nulls":6},"06.06.01 Биологогические науки"]
[]
["Пофамильный список подавших заявления:"]
[null,"Очная, 1 курс, Бюджетные места "]
[null,"План",3]
[null,"Подано             ",1]
[null,"Конкурс",{"$f":"IF(C62=0,\"ошибка вычисления\",C63/C62)","v":{"v":0.3333333333333333,"d":"0.33"}}]
[]
[null,"1. Борисова Светлана Павловна"]
[]
["Пофамильный список подавших заявления:"]
[null,"Очная, 1 курс, С оплатой обучения"]
[null,"План",1]
[null,"Подано             ",0]
[null,"Конкурс",{"$f":"IF(C70=0,\"ошибка вычисления\",C71/C70)","v":{"v":0,"d":"0.00"}}]
[]
["Пофамильный список подавших заявления:"]
[]
[null,"Заочная, 1 курс, С оплатой обучения"]
[null,"План",3]
[null,"Подано             ",0]
[null,"Конкурс",{"$f":"IF(C77=0,\"ошибка вычисления\",C78/C77)","v":{"v":0,"d":"0.00"}}]
[]
[]
["Институт / факультет",{"$nulls":6},"Естественно-географический"]
["Направление подготовки / специальность",{"$nulls":6},"05.06.01 Науки о Земле"]
[]
["Пофамильный список подавших заявления:"]
[]
[null,"Очная, 1 курс, С оплатой обучения"]
[null,"План",1]
[null,"Подано             ",0]
[null,"Конкурс",{"$f":"IF(C88=0,\"ошибка вычисления\",C89/C88)","v":{"v":0,"d":"0.00"}}]
[]
[]
["Пофамильный список подавших заявления:"]
[]
[null,"Заочная, 1 курс, С оплатой обучения"]
[null,"План",1]
[null,"Подано             ",0]
[null,"Конкурс",{"$f":"IF(C96=0,\"ошибка вычисления\",C97/C96)","v":{"v":0,"d":"0.00"}}]
[]
[]
[]
["Институт / факультет",{"$nulls":6},"Педагогики и психологии"]
["Направление подготовки / специальность",{"$nulls":6},"44.06.01 Образование и педагогические науки"]
[]
["Пофамильный список подавших заявления:"]
[]
[null,"Очная, 1 курс, Бюджетные места"]
[null,"План",3]
[null,"Подано             ",0]
[null,"Конкурс",{"$f":"IF(C108=0,\"ошибка вычисления\",C109/C108)","v":{"v":0,"d":"0.00"}}]
[]
[]
[null,"Очная, 1 курс, С оплатой обучения"]
[null,"План",2]
[null,"Подано             ",0]
[null,"Конкурс",{"$f":"IF(C114=0,\"ошибка вычисления\",C115/C114)","v":{"v":0,"d":"0.00"}}]
[]
[null,"Заочная, 1 курс, С оплатой обучения"]
[null,"План",12]
[null,"Подано             ",4]
[null,"Конкурс",{"$f":"IF(C119=0,\"ошибка вычисления\",C120/C119)","v":{"v":0.3333333333333333,"d":"0.33"}}]
[]
[null,"1. Муллина Светлана Эриковна"]
[null,"2. Ярышева Анастасия Николаевна"]
[null,"3. Кулагина Ирина Георгиевна"]
[null,"4. Гапонова Анастасия Викторовна"]
[]
["Институт / факультет",{"$nulls":6},"Историко-филологический "]
["Направление подготовки / специальность",{"$nulls":6},"45.06.01 Языкознание и литературоведение"]
[]
["Пофамильный список подавших заявления:"]
[null,"Очная, 1 курс,  Бюджетные места"]
[null,"План",1]
[null,"Подано             ",0]
[null,"Конкурс",{"$f":"IF(C133=0,\"ошибка вычисления\",C134/C133)","v":{"v":0,"d":"0.00"}}]
[]
["Пофамильный список подавших заявления:"]
[null,"Очная, 1 курс,  С оплатой обучения"]
[null,"План",1]
[null,"Подано             ",0]
[null,"Конкурс",{"$f":"IF(C139=0,\"ошибка вычисления\",C140/C139)","v":{"v":0,"d":"0.00"}}]
[]
["Пофамильный список подавших заявления:"]
[]
[null,"Заочная, 1 курс, С оплатой обучения"]
[null,"План",4]
[null,"Подано             ",0]
[null,"Конкурс",{"$f":"IF(C146=0,\"ошибка вычисления\",C147/C146)","v":{"v":0,"d":"0.00"}}]
[]
[]
["Институт / факультет",{"$nulls":6},"Историко-филологический "]
["Направление подготовки / специальность",{"$nulls":6},"46.06.01 Исторические науки и археология"]
[]
["Пофамильный список подавших заявления:"]
[]
[null,"Очная, 1 курс,  С оплатой обучения"]
[null,"План",1]
[null,"Подано             ",0]
[null,"Конкурс",{"$f":"IF(C157=0,\"ошибка вычисления\",C158/C157)","v":{"v":0,"d":"0.00"}}]
[]
["Пофамильный список подавших заявления:"]
[null,"Заочная, 1 курс, С оплатой обучения"]
[null,"План",15]
[null,"Подано             ",3]
[null,"Конкурс",{"$f":"IF(C163=0,\"ошибка вычисления\",C164/C163)","v":{"v":0.2,"d":"0.20"}}]
[]
[null,"1. Столащук Анна Николаевна"]
[null,"2. Самойлова Надежда Юрьевна"]
[null,"3. Павлов Иван Александрович"]
[]
["Направление подготовки / специальность",{"$nulls":6},"47.06.01 Философия, этика и религиоведение"]
[]
["Пофамильный список подавших заявления:"]
[]
[null,"Очная, 1 курс,  С оплатой обучения"]
[null,"План",1]
[null,"Подано             ",0]
[null,"Конкурс",{"$f":"IF(C176=0,\"ошибка вычисления\",C177/C176)","v":{"v":0,"d":"0.00"}}]
[]
[]
["Пофамильный список подавших заявления:"]
[]
[null,"Заочная, 1 курс, С оплатой обучения"]
[null,"План",1]
[null,"Подано             ",0]
[null,"Конкурс",{"$f":"IF(C184=0,\"ошибка вычисления\",C185/C184)","v":{"v":0,"d":"0.00"}}]
[]
["Пофамильный список подавших заявления:"]
[]
["Институт / факультет",{"$nulls":6},"Физической культуры и спорта"]
["Направление подготовки / специальность",{"$nulls":6},"49.06.01 Физическая культура и спорт"]
[]
["Пофамильный список подавших заявления:"]
[null,"Очная, 1 курс,  Бюджетные места"]
[null,"План",1]
[null,"Подано             ",1]
[null,"Конкурс",{"$f":"IF(C195=0,\"ошибка вычисления\",C196/C195)","v":{"v":1,"d":"1.00"}}]
[]
[null,"Романова Юлия Дмитриевна"]
[]
["Пофамильный список подавших заявления:"]
[null,"Очная, 1 курс,  С оплатой обучения"]
[null,"План",1]
[null,"Подано             ",0]
[null,"Конкурс",{"$f":"IF(C203=0,\"ошибка вычисления\",C204/C203)","v":{"v":0,"d":"0.00"}}]
[]
[]
[]
["Пофамильный список подавших заявления:"]
[]
[null,"Заочная, 1 курс, С оплатой обучения"]
[null,"План",2]
[null,"Подано             ",0]
[null,"Конкурс",{"$f":"IF(C212=0,\"ошибка вычисления\",C213/C212)","v":{"v":0,"d":"0.00"}}]

{"sheet":"Departments","index":1,"n_rows":11,"n_cols":2,"rows_kept":11,"hidden":true}
["Department_Id","Department_Title"]
["11","Естественно-географический"]
["6","Иностранных языков"]
["3","Исторический"]
["12","Педагогики и психологии"]
["9","Технологии и дизайна"]
["13","Физико-математический"]
["7","Физической культуры и спорта"]
["8","Филологический"]
["10","Экономики и управления"]
["2","Юридический"]

{"sheet":"EnterPlans","index":2,"n_rows":118,"n_cols":5,"rows_kept":118,"hidden":true}
["Department_Id","EnterPlan_Id","EnterPlan_Title","EnterPlan_Plan","EnterPlan_Notes"]
["11",154,"Экономика природопользования и экологический менеджмент",8,"Очная, 1 курс, Бюджетные места"]
["11",155,"Фитодизайн в садово-парковом и ландшафтном строительстве",9,"Очная, 1 курс, Бюджетные места"]
["3",158,"Музеология и охрана объектов культурного и природного наследия",4,"Очная, 1 курс, Бюджетные места"]
["11",160,"Биология/Химия",18,"Очная, 1 курс, Бюджетные места"]
["11",161,"География/Экология",18,"Очная, 1 курс, Бюджетные места"]
["6",163,"Иностранные (английский/немецкий) языки",26,"Очная, 1 курс, Бюджетные места"]
["6",165,"Иностранные (немецкий/английский) языки",15,"Очная, 1 курс, Бюджетные места"]
["6",167,"Иностранные (французский/английский) языки",15,"Очная, 1 курс, Бюджетные места"]
["3",169,"История/Обществознание",18,"Очная, 1 курс, Бюджетные места"]
["7",171,"Физическая культура/Безопасность жизнедеятельности",18,"Очная, 1 курс, Бюджетные места"]
["8",173,"Русский язык/Литература",19,"Очная, 1 курс, Бюджетные места"]
["12",175,"Дошкольное образование/Начальное образование",18,"Очная, 1 курс, Бюджетные места"]
["12",177,"Начальное образование/Информатика",19,"Очная, 1 курс, Бюджетные места"]
["13",179,"Математика/Информатика",18,"Очная, 1 курс, Бюджетные места"]
["13",180,"Математика/Иностранный (анг., нем.) языки",18,"Очная, 1 курс, Бюджетные места"]
["13",182,"Физика/Математика",19,"Очная, 1 курс, Бюджетные места"]
["12",184,"Психолого-педагогчисекое образование",4,"Очная, 1 курс, Бюджетные места (Квота приема лиц, имеющих особое право)"]
["12",185,"Психолого-педагогчисекое образование",24,"Очная, 1 курс, Бюджетные места"]
["10",187,"Менеджмент в социальной сфере",19,"Очная, 1 курс, Бюджетные места"]
["10",189,"Управление персоналом",8,"Очная, 1 курс, Бюджетные места"]
["10",191,"Менеджмент в сфере услуг (сервиса)",8,"Очная, 1 курс, Бюджетные места"]
["12",193,"Логопедия",19,"Очная, 1 курс, Бюджетные места"]
["7",195,"Физическая культура",18,"Очная, 1 курс, Бюджетные места"]
["12",196,"Начальное образование",19,"Очная, 1 курс, Бюджетные места"]
["9",200,"Сервис и эксплуатация автомобильного транспорта",8,"Очная, 1 курс, Бюджетные места"]
["9",201,"Декоративно-прикладное искусство и дизайн",6,"Очная, 1 курс, Бюджетные места"]
["9",203,"Технология и организация рестаранного сервиса",6,"Очная, 1 курс, Бюджетные места"]
["12",205,"Педагогика дошкольного образования",19,"Очная, 1 курс, Бюджетные места"]
["9",207,"Технология/Информатика",19,"Очная, 1 курс, Бюджетные места"]
["2",209,"Юриспруденция",18,"Заочная, 1 курс, Бюджетные места"]
["3",210,"История",15,"Заочная, 1 курс, Бюджетные места"]
["7",213,"Физическая культура",18,"Заочная, 1 курс, Бюджетные места"]
["8",215,"Русский язык/Литература",10,"Заочная, 1 курс, Бюджетные места"]
["12",217,"Дошкольное образование",18,"Заочная, 1 курс, Бюджетные места"]
["12",219,"Начальное образование",19,"Заочная, 1 курс, Бюджетные места"]
["9",221,"Технология",15,"Заочная, 1 курс, Бюджетные места"]
["13",225,"Математика",15,"Заочная, 1 курс, Бюджетные места"]
["13",227,"Информатика",9,"Заочная, 1 курс, Бюджетные места"]
["3",230,"Теология",4,"Заочная, 1 курс, Бюджетные места"]
["9",232,"Сервис и эксплуатация автомобильного транспорта",5,"Заочная, 1 курс, Бюджетные места"]
["9",233,"Декоративно-прикладное искусство и дизайн",4,"Заочная, 1 курс, Бюджетные места"]
["12",236,"Психология образования",19,"Заочная, 1 курс, Бюджетные места"]
["10",238,"Менеджмент в социальной сфере",19,"Заочная, 1 курс, Бюджетные места"]
["12",240,"Логопедия",19,"Заочная, 1 курс, Бюджетные места"]
["11",241,"География",20,"Заочная, 1 курс, Бюджетные места"]
["7",250,"Физическая культура/Безопасность жизнедеятельности",4,"Очная, 1 курс, Целевой прием"]
["12",253,"Начальное образование/Информатика",3,"Очная, 1 курс, Целевой прием"]
["12",257,"Психолого-педагогчисекое образование",4,"Очная, 1 курс, Целевой прием"]
["12",274,"Начальное образование",3,"Заочная, 1 курс, Целевой прием"]
["11",284,"Фитодизайн в садово-парковом и ландшафтном строительстве",5,"Очная, 1 курс, С оплатой обучения"]
["11",285,"Экономика природопользования и экологический менеджмент",5,"Очная, 1 курс, С оплатой обучения"]
["8",286,"Журналистика",10,"Очная, 1 курс, С оплатой обучения"]
["2",288,"Юриспруденция",50,"Очная, 1 курс, С оплатой обучения"]
["11",290,"География/Иностранный язык",20,"Очная, 1 курс, С оплатой обучения"]
["6",291,"Иностранные (немецкий/английский) языки",5,"Очная, 1 курс, С оплатой обучения"]
["6",292,"Инострнные (французский/английский) языки",5,"Очная, 1 курс, С оплатой обучения"]
["7",294,"Физическая культура/Безопасность жизнедеятельности",5,"Очная, 1 курс, С оплатой обучения"]
["8",295,"Русский язык/Литература",10,"Очная, 1 курс, С оплатой обучения"]
["13",297,"Математика/Экономика",20,"Очная, 1 курс, С оплатой обучения"]
["6",298,"Английский язык",15,"Очная, 1 курс, С оплатой обучения"]
["3",299,"Социально-культурная деятельность",10,"Очная, 1 курс, С оплатой обучения"]
["10",300,"Управление персоналом",9,"Очная, 1 курс, С оплатой обучения"]
["10",301,"Менеджмент в сфере услуг (сервиса)",10,"Очная, 1 курс, С оплатой обучения"]
["7",302,"Физическая культура",5,"Очная, 1 курс, С оплатой обучения"]
["9",303,"Декоративно-прикладное искусство и дизайн",10,"Очная, 1 курс, С оплатой обучения"]
["9",304,"Сервис и эксплуатация автомобильного транспорта",10,"Очная, 1 курс, С оплатой обучения"]
["9",305,"Технология и организация рестаранного сервиса",20,"Очная, 1 курс, С оплатой обучения"]
["8",306,"Журналистика",10,"Заочная, 1 курс, С оплатой обучения"]
["2",307,"Юриспруденция",75,"Заочная, 1 курс, С оплатой обучения"]
["11",308,"Биология",15,"Заочная, 1 курс, С оплатой обучения"]
["11",309,"География",2,"Заочная, 1 курс, С оплатой обучения"]
["6",310,"Иностранный язык",20,"Заочная, 1 курс, С оплатой обучения"]
["7",312,"Физическая культура",12,"Заочная, 1 курс, С оплатой обучения"]
["8",313,"Русский язык/Литература",4,"Заочная, 1 курс, С оплатой обучения"]
["12",314,"Дошкольное образование",30,"Заочная, 1 курс, С оплатой обучения"]
["12",315,"Начальное образование",15,"Заочная, 1 курс, С оплатой обучения"]
["9",316,"Технология",3,"Заочная, 1 курс, С оплатой обучения"]
["13",318,"Математика",3,"Заочная, 1 курс, С оплатой обучения"]
["13",319,"Информатика",6,"Заочная, 1 курс, С оплатой обучения"]
["3",320,"Теология",15,"Заочная, 1 курс, С оплатой обучения"]
["9",321,"Декоративно-прикладное искусство и дизайн",10,"Заочная, 1 курс, С оплатой обучения"]
["9",322,"Сервис и эксплуатация автомобильного транспорта",10,"Заочная, 1 курс, С оплатой обучения"]
["9",323,"Технология и организация ресторанного сервиса",10,"Заочная, 1 курс, С оплатой обучения"]
["12",324,"Психология образования",17,"Заочная, 1 курс, С оплатой обучения"]
["3",325,"Социально-культурная деятельность",10,"Заочная, 1 курс, С оплатой обучения"]
["10",326,"Менеджмент в социальной сфере",10,"Заочная, 1 курс, С оплатой обучения"]
["10",327,"Управление персоналом",50,"Заочная, 1 курс, С оплатой обучения"]
["10",328,"Менеджмент в сфере услуг (сервиса)",10,"Заочная, 1 курс, С оплатой обучения"]
["12",329,"Логопедия",10,"Заочная, 1 курс, С оплатой обучения"]
["7",334,"Физическая культура",12,"Очная, 1 курс, Бюджетные места, На базе ВПО"]
["12",336,"Научно-методическое сопровождение дошкольного  и начального образования",17,"Очная, 1 курс, Бюджетные места, На базе ВПО"]
["12",339,"Психология образования",15,"Очная, 1 курс, Бюджетные места, На базе ВПО"]
["8",340,"Русский язык. Литература",10,"Заочная, 1 курс, Бюджетные места, На базе ВПО"]
["11",341,"Геоэкология и химия",10,"Заочная, 1 курс, Бюджетные места, На базе ВПО"]
["12",342,"Начальное образование",10,"Заочная, 1 курс, Бюджетные места, На базе ВПО"]
["12",345,"Сопровождение профессиональной деятельности воспитателя",13,"Заочная, 1 курс, Бюджетные места, На базе ВПО"]
["12",346,"Психология образования",13,"Заочная, 1 курс, Бюджетные места, На базе ВПО"]
["12",370,"Научно-методическое сопровождение дошкольного  и начального образования",10,"Очная, 1 курс, С оплатой обучения, На базе ВПО"]
["2",377,"Государственное право",25,"Заочная, 1 курс, С оплатой обучения, На базе ВПО"]
["2",379,"Прикладная юриспруденция",25,"Заочная, 1 курс, С оплатой обучения, На базе ВПО"]
["2",381,"Юриспруденция",50,"Заочная, 1 курс, С оплатой обучения, На базе ВПО"]
["6",384,"Иностранный язык",10,"Заочная, 1 курс, С оплатой обучения, На базе ВПО"]
["12",388,"Дошкольное образование",20,"Заочная, 1 курс, С оплатой обучения, На базе ВПО"]
["12",389,"Начальное образование",10,"Заочная, 1 курс, С оплатой обучения, На базе ВПО"]
["3",394,"История",15,"Заочная, 1 курс, С оплатой обучения, На базе ВПО"]
["11",395,"Геоэкология и химия",10,"Заочная, 1 курс, С оплатой обучения, На базе ВПО"]
["8",397,"Русский язык. Литература",10,"Заочная, 1 курс, С оплатой обучения, На базе ВПО"]
["12",398,"Управление образовательными системами",100,"Заочная, 1 курс, С оплатой обучения, На базе ВПО"]
["3",405,"Теология",21,"Заочная, 1 курс, С оплатой обучения, На базе ВПО"]
["12",409,"Психология образования",18,"Заочная, 1 курс, С оплатой обучения, На базе ВПО"]
["12",410,"Сопровождение профессиональной деятельности воспитателя",10,"Заочная, 1 курс, С оплатой обучения, На базе ВПО"]
["12",411,"Психология образования",10,"Заочная, 1 курс, С оплатой обучения, На базе ВПО"]
["10",415,"Управление персоналом",25,"Заочная, 1 курс, С оплатой обучения, На базе ВПО"]
["10",416,"Образовательный менеджмент",25,"Заочная, 1 курс, С оплатой обучения, На базе ВПО"]
["10",417,"Менеджмент персонала современной организации",25,"Заочная, 1 курс, С оплатой обучения, На базе ВПО"]
["12",420,"Логопедия",15,"Заочная, 1 курс, С оплатой обучения, На базе ВПО"]
["10",448,"Менеджмент в социальной сфере",2,"Заочная, 1 курс, Бюджетные места, Крым и Севастополь"]

{"sheet":"StudentPetitions","index":3,"n_rows":975,"n_cols":3,"rows_kept":975,"hidden":true}
["EnterPlan_Id","StudentPetition_Irn","Student_Title"]
[154,"0001Эп-...2015","Таланов Илья Викторович"]
[154,"0002Эп-...2015","Палаткина Вероника Игоревна"]
[154,"0003Эп-...2015","Ракаев Альберт Евгеньевич"]
[154,"0004Эп-...2015","Мусина Алина Риазовна"]
[154,"0005Эп-...2015","Вегерова Ирина Александровна"]
[154,"0006Эп-...2015","Цыганов Василий Викторович"]
[154,"0007Эп-...2015","Федулова Оксана Андреевна"]
[154,"0008Эп-...2015","Токмакова Алена Александровна"]
[154,"0009Эп-...2015","Абросимова Елизавета Геннадьевна"]
[154,"0010Эп-...2015","Кожевникова Евгения Евгеньевна"]
[154,"0011Эп-...2015","Волкова Вероника Николаевна"]
[154,"0012Эп-...2015","Шайдуллова Лейсан Рустамовна"]
[154,"0013Эп-...2015","Замалтдинова Алсу Равиловна"]
[154,"0014Эп-...2015","Липанова Анастасия Сергеевна"]
[154,"0015Эп-...2015","Ларионов Павел Олегович"]
[154,"0016Эп-...2015","Дарьина Екатерина Сергеевна"]
[154,"0017Эп-...2015","Петров Максим Вячеславович"]
[154,"0018Эп-...2015","Мавлютова Камилла Разиковна"]
[154,"0019Эп-...2015","Дмитриева Наталья Александровна"]
[154,"0020Эп-...2015","Юсупов Адель Маратович"]
[154,"0021Эп-...2015","Насыбулина Луиза Равилевна"]
[154,"0022Эп-...2015","Бектеев Руслан Радикович"]
[154,"0023Эп-...2015","Лифанова Ирина Владимировна"]
[154,"0024Эп-...2015","Храмова Алёна Олеговна"]
[154,"0025Эп-...2015","Семёнова Анастасия Юрьевна"]
[154,"0026Эп-...2015","Сибирякова Виктория Владимировна"]
[154,"0027Эп-...2015","Гаймин Семён Николаевич"]
[154,"0028Эп-...2015","Коржова Татьяна Олеговна"]
[154,"0029Эп-...2015","Ливанова Юлия Сергеевна"]
[154,"0030Эп-...2015","Хасанова Алсу Ринатовна"]
[154,"0031Эп-...2015","Панюшева Валентина Сергеевна"]
[154,"0032Эп-...2015","Чумакина Олеся Сергеевна"]
[154,"0033Эп-...2015","Захарова Ольга Васильевна"]
[154,"0034Эп-...2015","Саратцева Анастасия Сергеевна"]
[154,"0035Эп-...2015","Белова Надежда Валерьевна"]
[154,"0036Эп-...2015","Сапожник Алла Александровна"]
[154,"0037Эп-...2015","Субханкуллова Роза Ришатовна"]
[154,"0038Эп-...2015","Молгачев Олег Андреевич"]
[155,"0001Фд-…2015","Таланов Илья Викторович"]
[155,"0002Фд-…2015","Мусина Алина Риазовна"]
[155,"0003Фд-…2015","Вегерова Ирина Александровна"]
[155,"0004Фд-…2015","Цыганов Василий Викторович"]
[155,"0005Фд-…2015","Петров Максим Вячеславович"]
[155,"0006Фд-…2015","Мавлютова Камилла Разиковна"]
[155,"0007Фд-…2015","Петрова Ксения Владимировна"]
[155,"0008Фд-…2015","Абросимова Елизавета Геннадьевна"]
[155,"0009Фд-…2015","Дарьина Екатерина Сергеевна"]
[155,"0010Фд-…2015","Липанова Анастасия Сергеевна"]
[155,"0011Фд-…2015","Кожевникова Евгения Евгеньевна"]
[155,"0012Фд-…2015","Идрисов Ильназ Ильмирович"]
[155,"0013Фд-…2015","Федулова Оксана Андреевна"]
[155,"0014Фд-…2015","Семёнова Анастасия Юрьевна"]
[155,"0015Фд-…2015","Ливанова Юлия Сергеевна"]
[155,"0016Фд-…2015","Вражкина Надежда Геннадьевна"]
[155,"0017Фд-…2015","Захарова Ольга Васильевна"]
[155,"0018Фд-…2015","Саратцева Анастасия Сергеевна"]
[155,"0019Фд-…2015","Сапожник Алла Александровна"]
[155,"0020Фд-…2015","Белова Надежда Валерьевна"]
[158,"0001Мкд-…2015","Ревин Александр Евгеньевич"]
[160,"0001БХ-…2015","Ракаев Альберт Евгеньевич"]
[161,"0001ГЭ-…2015","Шмагин Виктор Александрович"]
[161,"0002ГЭ-…2015","Ракаев Альберт Евгеньевич"]
[163,"0001Ан-…2015","Смирнов Антон Игоревич"]
[163,"0002Ан-…2015","Петрова Анастасия Юрьевна"]
[165,"0001На-…2015","Смирнов Антон Игоревич"]
[165,"0002На-…2015","Петрова Анастасия Юрьевна"]
[165,"0003На-…2015","Семенова Екатерина Сергеевна"]
[165,"0004На-…2015","Сафина Эльвира Анваровна"]
[165,"0005На-…2015","Хаернасова Динара Ирековна"]
[165,"0006На-…2015","Евсеева Светлана Дмитриевна"]
[165,"0007На-…2015","Васина Валерия Станиславовна"]
[165,"0008На-…2015","Орешникова Маргарита Алексеевна"]
[165,"0009На-…2015","Еремина Ксения Валерьевна"]
[165,"0010На-…2015","Низамова Лилия Хамитовна"]
[165,"0011На-…2015","Семенова Дарья Александровна"]
[165,"0012На-…2015","Андреева Елена Сергеевна"]
[165,"0013На-…2015","Исаева Лана Николаевна"]
[165,"0014На-…2015","Остапчук Ирина Андреевна"]
[165,"0015На-…2015","Заббаров Айдар Шафикович"]
[165,"0016На-…2015","Тихова Виктория Анатольевна"]
[165,"0017На-…2015","Кулакова-Сонинская Арина Валерьевна"]
[165,"0018На-…2015","Фролова Елена Юрьевна"]
[165,"0019На-…2015","Утриванова Юлия Михайловна"]
[165,"0020На-…2015","Варламова Юлия Сергеевна"]
[165,"0021На-…2015","Корогодин Никита Николаевич"]
[165,"0022На-…2015","Соколова Альбина Вениаминовна"]
[165,"0023На-…2015","Трошин Михаил Дмитриевич"]
[165,"0024На-…2015","Максимова Екатерина Сергеевна"]
[165,"0025На-…2015","Кабанова Наталия Дмитриевна"]
[165,"0026На-…2015","Орешникова Анна Романовна"]
[165,"0027На-…2015","Федотова Татьяна Юрьевна"]
[165,"0028На-…2015","Дроздова Яна Андреевна"]
[165,"0029На-…2015","Аргасцева Валерия Владимировна"]
[165,"0030На-…2015","Фахрутдинова Алина Ленаровна"]
[165,"0031На-…2015","Полуянов Алексей Витальевич"]
[165,"0032На-…2015","Баталеева Светлана Сергеевна"]
[165,"0033На-…2015","Бойко Юлия Александровна"]
[165,"0034На-…2015","Грунявина Анна Михайловна"]
[167,"0001Фа-…2015","Смирнов Антон Игоревич"]
[167,"0002Фа-…2015","Семенова Екатерина Сергеевна"]
[167,"0003Фа-…2015","Сафина Эльвира Анваровна"]
[167,"0004Фа-…2015","Саетгалиева Венера Фаридовна"]
[167,"0005Фа-…2015","Орешникова Маргарита Алексеевна"]
[167,"0006Фа-…2015","Заббаров Айдар Шафикович"]
[167,"0007Фа-…2015","Тихова Виктория Анатольевна"]
[167,"0008Фа-…2015","Варламова Юлия Сергеевна"]
[167,"0009Фа-…2015","Павлова Анастасия Андреевна"]
[167,"0010Фа-…2015","Васина Валерия Станиславовна"]
[167,"0011Фа-…2015","Тапина Александра Юрьевна"]
[167,"0012Фа-…2015","Семенова Дарья Александровна"]
[167,"0013Фа-…2015","Андреева Елена Сергеевна"]
[167,"0014Фа-…2015","Жилкина Юлия Сергеевна"]
[167,"0015Фа-…2015","Хапаева Александра Вячеславовна"]
[167,"0016Фа-…2015","Остапчук Ирина Андреевна"]
[167,"0017Фа-…2015","Муфтахова Маргарита Рафаэлевна"]
[167,"0018Фа-…2015","Акимова Анастасия Андреевна"]
[167,"0019Фа-…2015","Корогодин Никита Николаевич"]
[167,"0020Фа-…2015","Утриванова Юлия Михайловна"]
[167,"0021Фа-…2015","Максимова Екатерина Сергеевна"]
[167,"0022Фа-…2015","Трошин Михаил Дмитриевич"]
[167,"0023Фа-…2015","Орешникова Анна Романовна"]
[167,"0024Фа-…2015","Лекомцева Ирина Валерьевна"]
[167,"0025Фа-…2015","Артемова Дарья Владимировна"]
[167,"0026Фа-…2015","Волчкова Кристина Сергеевна"]
[169,"0001Исо-…2015","Русскова Наталья Александровна"]
[169,"0002Исо-…2015","Ревин Александр Евгеньевич"]
[171,"0001Фкбд-…2015","Юрьева Александра Сергеевна"]
[171,"0002Фкбд-…2015","Волков Андрей Владимирович"]
[171,"0003Фкбд-…2015","Богунов Илья Андреевич"]
[171,"0004Фкбд-…2015","Шмагин Виктор Александрович"]
[171,"0005Фкбд-…2015","Ревин Александр Евгеньевич"]
[171,"0006Фкбд-…2015","Васильев Юрий Валерьевич"]
[171,"0007Фкбд-…2015","Захаров Алксандр Викторович"]
[171,"0008Фкбд-…2015","Низамов Артур Айратович"]
[171,"0009Фкбд-…2015","Низамов Руслан Айратович"]
[171,"0010Фкбд-…2015","Зайцева Надежда Сергеевна"]
[171,"0011Фкбд-…2015","Краснов Владислав Викторович"]
[171,"0012Фкбд-…2015","Салин Сергей Владимирович"]
[171,"0013Фкбд-…2015","Аникина Юлия Анатольевна"]
[171,"0014Фкбд-…2015","Факругдинов Тимур Маратович"]
[171,"0015Фкбд-…2015","Кузьмин Юрий Алксандрович"]
[171,"0016Фкбд-…2015","Бикучев Эрик Альбертович"]
[171,"0017Фкбд-…2015","Тыркин Александр Олегович"]
[171,"0018Фкбд-…2015","Максимов Иван Андреевич"]
[171,"0019Фкбд-…2015","Быков Владислав Юрьевич"]
[171,"0020Фкбд-…2015","Фадеева Надежда Сергеевна"]
[171,"0021Фкбд-…2015","Попов Кирилл Юрьевич"]
[171,"0022Фкбд-…2015","Яхудин Айрат Рафикович"]
[171,"0023Фкбд-…2015","Матренин Владислав Дмитривич"]
[171,"0024Фкбд-…2015","Воронин Михаил Сергеевич"]
[171,"0025Фкбд-…2015","Валиев Рамиль Ахнафович"]
[171,"0026Фкбд-…2015","Дудырев Максим Михайлович"]
[171,"0027Фкбд-…2015","Радченко Наталья Александровна"]
[171,"0028Фкбд-…2015","Хамбиков Никита Олегович"]
[171,"0029Фкбд-…2015","Карасев Вадим Михайлович"]
[171,"0030Фкбд-…2015","Никитина Дарья Анатольевна"]
[171,"0031Фкбд-…2015","Степанова Екатерина Александровна"]
[171,"0032Фкбд-…2015","Кривошеев Сергей Викторович"]
[171,"0033Фкбд-…2015","Круглов Сергей Георгиевич"]
[171,"0034Фкбд-…2015","Галныкин Сергей Сергеевич"]
[171,"0035Фкбд-…2015","Анисимов Максим Сергеевич"]
[171,"0036Фкбд-…2015","Мюрк Олег Эдуардович"]
[171,"0037Фкбд-…2015","Чилинцев Иван Сергеевич"]
[173,"0001Рл-…2015","Фольк Карина Константиновна"]
[173,"0002Рл-…2015","Коновалова Татьяна Дмитриевна"]
[173,"0003Рл-…2015","Трифонова Дарья Глебовна"]
[173,"0004Рл-…2015","Полумордвинова Анастасия Алексеевна"]
[173,"0005Рл-…2015","Злобин Александр Анатольевич"]
[173,"0006Рл-…2015","Волкова Юлия Евгеньевна"]
[173,"0007Рл-…2015","Абдуллаева Роза Видади кызы"]
[173,"0008Рл-…2015","Князькина Ксения Александровна"]
[173,"0009Рл-…2015","Сатина Ирина Сергеевна"]
[173,"0010Рл-…2015","Семенова Анастасия Евгеньевна"]
[173,"0011Рл-…2015","Зубова Анастасия Евгеньевна"]
[175,"0001Дон-…2015","Якимова Татьяна Анатольевна"]
[175,"0002Дон-…2015","Морозова Наталья Александровна"]
[175,"0003Дон-…2015","Лисин Алексей Вячеславович"]
[175,"0004Дон-…2015","Курзанова Анастасия Юрьевна"]
[175,"0005Дон-…2015","Батырева Кристина Владимировна"]
[175,"0006Дон-…2015","Ильина Алина Витальевна"]
[175,"0007Дон-…2015","Абанина Алена Дмитриевна"]
[175,"0008Дон-…2015","Смолин Вячеслав Алексеевич"]
[177,"0001Нои-…2015","Якимова Татьяна Анатольевна"]
[177,"0002Нои-…2015","Артемьева Анна Вадимовна"]
[177,"0003Нои-…2015","Краснова Елена Романовна"]
[177,"0004Нои-…2015","Козлова Екатерина Дмитриевна"]
[177,"0005Нои-…2015","Лукьянова Кристина Петровна"]
[177,"0006Нои-…2015","Коптелинина Анна Дмитриевна"]
[177,"0007Нои-…2015","Волкова Юлия Евгеньевна"]
[177,"0008Нои-…2015","Мингалиева Айгел Раисовна"]
[179,"0001Ми-…2015","Рябченюк Сергей Анверович"]
[179,"0002Ми-…2015","Козлова Екатерина Дмитриевна"]
[179,"0003Ми-…2015","Мантай Мария Викторовна"]
[179,"0004Ми-…2015","Колосовская Екатерина Константиновна"]
[179,"0005Ми-…2015","Сальникова Кристина Александровна"]
[179,"0006Ми-…2015","Панкратова Наталья Михайловна"]
[179,"0007Ми-…2015","Абросимова Дарья Сергеевна"]
[179,"0008Ми-…2015","Мавлютова Диана Джиганшовна"]
[179,"0009Ми-…2015","Бондарева Наталья Ивановна"]
[179,"0010Ми-…2015","Нашатырёва Алана Николаевна"]
[179,"0011Ми-…2015","Омельченко Елена Константиновна"]
[179,"0012Ми-…2015","Нуруллина Венера Ирековна"]
[179,"0013Ми-…2015","Логева Регина Юрьевна"]
[179,"0014Ми-…2015","Шленкин Алексей Алексеевич"]
[179,"0015Ми-…2015","Муравьева Евгения Павловна"]
[179,"0016Ми-…2015","Голубева Дарья Николаевна"]
[179,"0017Ми-…2015","Махмутова Татьяна Анатольевна"]
[179,"0018Ми-…2015","Попова Ксения Владимировна"]
[179,"0019Ми-…2015","Чижова Екатерина Андреевна"]
[179,"0020Ми-…2015","Керчина Алина Сергеевна"]
[179,"0021Ми-…2015","Каргина Дарья Евгеньевна"]
[179,"0022Ми-…2015","Кубрина Светлана Олеговна"]
[179,"0023Ми-…2015","Васильковский Александр Игоревич"]
[179,"0024Ми-…2015","Ермишина Юлия Сергеевна"]
[179,"0025Ми-…2015","Дозорова Дарья Алексеевна"]
[179,"0026Ми-…2015","Федотова Татьяна Юрьевна"]
[179,"0027Ми-…2015","Нашатырева Алина Николаевна"]
[180,"0001Мия-…2015","Абросимова Дарья Сергеевна"]
[180,"0002Мия-…2015","Панкратова Наталья Михайловна"]
[180,"0003Мия-…2015","Дубинкина Екатерина Владимировна"]
[180,"0004Мия-…2015","Мирная Арина Александровна"]
[180,"0005Мия-…2015","Грушина Дарья Сергеевна"]
[180,"0006Мия-…2015","Терентьева Марина Сергеевна"]
[180,"0007Мия-…2015","Харитонова Алина Дмитриевна"]
[180,"0008Мия-…2015","Хапаева Александра Вячеславовна"]
[180,"0009Мия-…2015","Ионова Мария Евгеньевна"]
[180,"0010Мия-…2015","Глунцова Татьяна Михайловна"]
[180,"0011Мия-…2015","Шилина Алевтина Андреевна"]
[180,"0012Мия-…2015","Муфтахова Маргарита Рафаэлевна"]
[180,"0013Мия-…2015","Шленкин Алексей Алексеевич"]
[180,"0014Мия-…2015","Муравьева Евгения Павловна"]
[180,"0015Мия-…2015","Елисеева Кристина Павловна"]
[180,"0016Мия-…2015","Попова Ксения Владимировна"]
[180,"0017Мия-…2015","Чаусова Анастасия Владимировна"]
[180,"0018Мия-…2015","Кирюхина Мария Николаевна"]
[180,"0019Мия-…2015","Александров Алексей Сергеевич"]
[180,"0020Мия-…2015","Порозова Мария Юрьевна"]
[180,"0021Мия-…2015","Брюхова Анна Сергеевна"]
[180,"0022Мия-…2015","Ермишина Юлия Сергеевна"]
[182,"0001Фм-…2015","Рябченюк Сергей Анверович"]
[182,"0002Фм-…2015","Козлова Екатерина Дмитриевна"]
[182,"0003Фм-…2015","Безухова Анастасия Сергеевна"]
[182,"0004Фм-…2015","Ганиев Айдар Илдарович"]
[182,"0005Фм-…2015","Мавлютова Диана Джиганшовна"]
[182,"0006Фм-…2015","Бондарева Наталья Ивановна"]
[182,"0007Фм-…2015","Терентьева Марина Сергеевна"]
[182,"0008Фм-…2015","Ким Илдежва Сергеевна"]
[182,"0009Фм-…2015","Муравьева Евгения Павловна"]
[182,"0010Фм-…2015","Арсентьева Ксения Петровна"]
[182,"0011Фм-…2015","Кузьмина Анастасия Валерьевна"]
[182,"0012Фм-…2015","Нуруллина Венера Ирековна"]
[182,"0013Фм-…2015","Мефтахова Дарья Дмитриевна"]
[182,"0014Фм-…2015","Голубева Дарья Николаевна"]
[182,"0015Фм-…2015","Махмутова Татьяна Анатольевна"]
[182,"0016Фм-…2015","Курамшина Мария Владимировна"]
[182,"0017Фм-…2015","Петрова Елена Алексеевна"]
[182,"0018Фм-…2015","Чаусова Анастасия Владимировна"]
[182,"0019Фм-…2015","Филиппова Галина Сергеевна"]
[182,"0020Фм-…2015","Курушин Руслан Русланович"]
[182,"0021Фм-…2015","Ермишина Юлия Сергеевна"]
[182,"0022Фм-…2015","Нашатырева Алина Николаевна"]
[182,"0023Фм-…2015","Чернова Евгения Павловна"]
[182,"0024Фм-…2015","Алексеева Татьяна Павловна"]
[182,"0025Фм-…2015","Середавина Юлия Федоровна"]
[182,"0026Фм-…2015","Миначева Гузель Хамедовна"]
[182,"0027Фм-…2015","Курганская Анастасия Алексеевна"]
[182,"0028Фм-…2015","Сухов Иван Сергеевич"]
[184,"0001КВОТА Ппо-..2015","Пчелова Екатерина Владимировна"]
[185,"0001Ппо-..2015","Палаткина Вероника Игоревна"]
[185,"0002Ппо-..2015","Чехова Ольга Сергеевна"]
[185,"0003Ппо-..2015","Мусина Алина Риазовна"]
[185,"0004Ппо-..2015","Федулова Оксана Андреевна"]
[185,"0005Ппо-..2015","Дементьева Анастасия Евгеньевна"]
[185,"0006Ппо-..2015","Чурбанова Ксения Владимировна"]
[185,"0007Ппо-..2015","Иванова Мария Дмитриевна"]
[185,"0008Ппо-..2015","Дубинкина Екатерина Владимировна"]
[185,"0009Ппо-..2015","Стеблева Евгения Владимировна"]
[185,"0010Ппо-..2015","Жилкина Анастасия Андреевна"]
[185,"0011Ппо-..2015","Ларионов Павел Олегович"]
[185,"0012Ппо-..2015","Замалтдинова Алсу Равиловна"]
[185,"0013Ппо-..2015","Липанова Анастасия Сергеевна"]
[185,"0014Ппо-..2015","Кузьмина Анастасия Валерьевна"]
[185,"0015Ппо-..2015","Машкина Анастасия Сергеевна"]
[185,"0016Ппо-..2015","Дарьина Екатерина Сергеевна"]
[185,"0017Ппо-..2015","Петров Максим Вячеславович"]
[185,"0018Ппо-..2015","Юсупов Адель Маратович"]
[187,"0001Ср-…2015","Эндюськина Татьяна Андреевна"]
[187,"0002Ср-…2015","Чехова Ольга Сергеевна"]
[187,"0003Ср-…2015","Сухова Наталья Валерьевна"]
[187,"0004Ср-…2015","Борковская Елена Олеговна"]
[189,"0001Уп-…2015","Батырева Кристина Владимировна"]
[189,"0002Уп-…2015","Долгова Екатерина Николаевна"]
[189,"0003Уп-…2015","Борковская Елена Олеговна"]
[189,"0004Уп-…2015","Петрова Анастасия Юрьевна"]
[189,"0005Уп-…2015","Косолапова Алёна Александровна"]
[189,"0006Уп-…2015","Сайфутдинова Айгуль Хасиповна"]
[189,"0007Уп-…2015","Джалилова Рания Дамировна"]
[189,"0008Уп-…2015","Джалилов Шаъбун Айнидинович"]
[189,"0009Уп-…2015","Айзатова Эльвира Фиолитовна"]
[189,"0010Уп-…2015","Лапшенкова Анна Николаевна"]
[189,"0011Уп-…2015","Панкратова Наталья Михайловна"]
[189,"0012Уп-…2015","Умарова Эльмира Экриновна"]
[189,"0013Уп-…2015","Антонова Яна Александровна"]
[189,"0014Уп-…2015","Варламова Анна Сергеевна"]
[189,"0015Уп-…2015","Коннова Юлия Валерьевна"]
[189,"0016Уп-…2015","Вишнякова Дарья Сергеевна"]
[189,"0017Уп-…2015","Трехонина Марина Владимировна"]
[189,"0018Уп-…2015","Кузьмина Анастасия Валерьевна"]
[189,"0019Уп-…2015","Горницкий Егор Дмитриевич"]
[189,"0020Уп-…2015","Дунаева Диана Алексеевна"]
[189,"0021Уп-…2015","Арсентьева Ксения Петровна"]
[189,"0022Уп-…2015","Джалолов Шаъбун Айнидинович"]
[189,"0023Уп-…2015","Рыжова Юлия Владимировна"]
[189,"0024Уп-…2015","Волков Дмитрий Михайлович"]
[189,"0025Уп-…2015","Храмова Алёна Олеговна"]
[189,"0026Уп-…2015","Морозова Анастасия Валерьевна"]
[189,"0027Уп-…2015","Лекомцева Ирина Валерьевна"]
[189,"0028Уп-…2015","Ермишина Юлия Сергеевна"]
[189,"0029Уп-…2015","Захарян Диана Игоревна"]
[189,"0030Уп-…2015","Шипунова Алина Андреевна"]
[189,"0031Уп-…2015","Каргина Дарья Евгеньевна"]
[189,"0032Уп-…2015","Громова Мария Алексеевна"]
[191,"0001С-…2015","Фольк Карина Константиновна"]
[191,"0002С-…2015","Салина Нина Александровна"]
[191,"0003С-…2015","Батырева Кристина Владимировна"]
[191,"0004С-…2015","Долгова Екатерина Николаевна"]
[191,"0005С-…2015","Борковская Елена Олеговна"]
[191,"0006С-…2015","Айзатова Эльвира Фиолитовна"]
[191,"0007С-…2015","Антонова Яна Александровна"]
[191,"0008С-…2015","Ерасов Евгений Алексеевич"]
[193,"0001Сдо-…2015","Салина Нина Александровна"]
[193,"0002Сдо-…2015","Чурбанова Ксения Владимировна"]
[193,"0003Сдо-…2015","Идрисов Ильназ Ильмирович"]
[193,"0004Сдо-…2015","Стеблева Евгения Владимировна"]
[193,"0005Сдо-…2015","Ларионов Павел Олегович"]
[193,"0006Сдо-…2015","Жилкина Анастасия Андреевна"]
[193,"0007Сдо-…2015","Сюваткина Марина Алексеевна"]
[193,"0008Сдо-…2015","Васильева Варвара Валерьевна"]
[193,"0009Сдо-…2015","Юсупов Адель Маратович"]
[193,"0010Сдо-…2015","Дмитриева Евгения Васильевна"]
[193,"0011Сдо-…2015","Стрела Елизавета Александровна"]
[193,"0012Сдо-…2015","Образцова Виктория Сергеевна"]
[193,"0013Сдо-…2015","Жиленко Елизавета Дмитриевна"]
[193,"0014Сдо-…2015","Горшенков Ярослав Олегович"]
[193,"0015Сдо-…2015","Кубрина Светлана Олеговна"]
[193,"0016Сдо-…2015","Лапшина Алина Олеговна"]
[193,"0017Сдо-…2015","Максимова Екатерина Сергеевна"]
[193,"0018Сдо-…2015","Машкина Анастасия Сергеевна"]
[193,"0019Сдо-…2015","Черникова Анастасия Алексеевна"]
[193,"0020Сдо-…2015","Насыбулина Луиза Равилевна"]
[193,"0021Сдо-…2015","Лифанова Ирина Владимировна"]
[193,"0022Сдо-…2015","Дорофеева Галина Михайловна"]
[193,"0023Сдо-…2015","Хлебникова Ксения Александровна"]
[193,"0024Сдо-…2015","Шердяева Елизавета Игоревна"]
[195,"0001Фк-…2015","Воробьева Светлана Петровна"]
[195,"0002Фк-…2015","Силенко Надежда Константиновна"]
[195,"0003Фк-…2015","Мотавилов Вечеслав Юрьевич"]
[195,"0004Фк-…2015","Герасимова Людмила Константиновна"]
[195,"0005Фк-…2015","Юрьева Александра Сергеевна"]
[195,"0006Фк-…2015","Андреев Андрей Сергеевич"]
[195,"0007Фк-…2015","Кондратьев Никита Сергеевич"]
[195,"0008Фк-…2015","Волков Андрей Владимирович"]
[195,"0009Фк-…2015","Васильев Юрий Валерьевич"]
[195,"0010Фк-…2015","Дудырев Максим Михайлович"]
[195,"0011Фк-…2015","Саранцева Юлия Викторовна"]
[195,"0012Фк-…2015","Захаров Алксандр Викторович"]
[195,"0013Фк-…2015","Зайцева Надежда Викторовна"]
[195,"0014Фк-…2015","Ильбикова Александра Владиславовна"]
[195,"0015Фк-…2015","Шуравнина Алена Сергеевна"]
[195,"0016Фк-…2015","Цевелёв Глеб Владимирович"]
[195,"0017Фк-…2015","Мастрюков Павел Андреевич"]
[195,"0018Фк-…2015","Фадеева Надежда Сергеевна"]
[196,"0001Но-…2015","Якимова Татьяна Анатольевна"]
[196,"0002Но-…2015","Лисин Алексей Вячеславович"]
[200,"0001Сам-…2015","Енин Никита Сергеевич"]
[200,"0002Сам-…2015","Артёмов Павел Дмитриевич"]
[200,"0003Сам-…2015","Полякова Анастасия Александровна"]
[200,"0004Сам-…2015","Волков Андрей Владимирович"]
[200,"0005Сам-…2015","Шмагин Виктор Александрович"]
[200,"0006Сам-…2015","Козлова Екатерина Дмитриевна"]
[200,"0007Сам-…2015","Федосеев Дмитрий Алексеевич"]
[200,"0008Сам-…2015","Мухаметшин Ильсаф Рифкатевич"]
[200,"0009Сам-…2015","Горницкий Егор Дмитриевич"]
[200,"0010Сам-…2015","Трифонов Илья Олегович"]
[200,"0011Сам-…2015","Ерасов Евгений Алексеевич"]
[201,"0001Дпд-...2015","Морозова Наталья Александровна"]
[201,"0002Дпд-...2015","Полякова Анастасия Александровна"]
[201,"0003Дпд-...2015","Фольк Карина Константиновна"]
[201,"0004Дпд-...2015","Козлова Екатерина Дмитриевна"]
[201,"0005Дпд-...2015","Джалилова Рания Дамировна"]
[201,"0006Дпд-...2015","Садеева Гульназ Радиковна"]
[201,"0007Дпд-...2015","Глунцова Татьяна Михайловна"]
[201,"0008Дпд-...2015","Волина Юлия Андреевна"]
[201,"0009Дпд-...2015","Трехонина Марина Владимировна"]
[201,"0010Дпд-...2015","Дунаева Диана Алексеевна"]
[201,"0011Дпд-...2015","Ромашкина Дарья Дмитриевна"]
[201,"0012Дпд-...2015","Мефтахова Дарья Дмитриевна"]
[201,"0013Дпд-...2015","Кирюхина Мария Николаевна"]
[201,"0014Дпд-...2015","Попова Ксения Владимировна"]
[201,"0015Дпд-...2015","Александров Алексей Сергеевич"]
[201,"0016Дпд-...2015","Куприянова Мария Александровна"]
[201,"0017Дпд-...2015","Орешникова Анна Романовна"]
[201,"0018Дпд-...2015","Кожевникова Диана Рамисовна"]
[201,"0019Дпд-...2015","Едрукова Наталья Сергеевна"]
[201,"0020Дпд-...2015","Феткуллова Ильнара Робертовна"]
[201,"0021Дпд-...2015","Миначева Гузель Хамедовна"]
[201,"0022Дпд-...2015","Акименко Екатерина Андреевна"]
[203,"0001Р-...2015","Косолапова Алёна Александровна"]
[203,"0002Р-...2015","Умарова Эльмира Экриновна"]
[203,"0003Р-...2015","Каштанкина Екатерина Андреевна"]
[203,"0004Р-...2015","Нуруллина Венера Ирековна"]
[203,"0005Р-...2015","Дозорова Дарья Алексеевна"]
[203,"0006Р-...2015","Елисеева Анна Вячеславовна"]
[203,"0007Р-...2015","Шипунова Алина Андреевна"]
[203,"0008Р-...2015","Салихова Лилия Альбертовна"]
[203,"0009Р-...2015","Потехина Екатерина Дмитриевна"]
[203,"0010Р-...2015","Охотникова Екатерина Сергеевна"]
[203,"0011Р-...2015","Фасхутдинова Диана Рафаэльевна"]
[203,"0012Р-...2015","Аипова Рузалина Наильевна"]
[203,"0013Р-...2015","Тимакова Алена Александровна"]
[205,"0001Пдо-…2015","Чехова Ольга Сергеевна"]
[205,"0002Пдо-…2015","Цыганов Василий Викторович"]
[205,"0003Пдо-…2015","Идрисов Ильназ Ильмирович"]
[205,"0004Пдо-…2015","Волкова Вероника Николаевна"]
[205,"0005Пдо-…2015","Шайдуллова Лейсан Рустамовна"]
[205,"0006Пдо-…2015","Игнашова Мария Владимировна"]
[205,"0007Пдо-…2015","Образцова Виктория Сергеевна"]
[205,"0008Пдо-…2015","Максимова Екатерина Сергеевна"]
[205,"0009Пдо-…2015","Попов Кирилл Юрьевич"]
[205,"0010Пдо-…2015","Алексеева Татьяна Павловна"]
[205,"0011Пдо-…2015","Гаймин Семён Николаевич"]
[205,"0012Пдо-…2015","Кузьмина Ирина Юрьевна"]
[205,"0013Пдо-…2015","Зурнина Светлана Сергеевна"]
[205,"0014Пдо-…2015","Исаева Дарья Александровна"]
[205,"0015Пдо-…2015","Губина Татьяна Александровна"]
[207,"0001Ти-…2015","Козлова Екатерина Дмитриевна"]
[207,"0002Ти-…2015","Лукьянова Кристина Пеьровна"]
[207,"0003Ти-…2015","Низамов Артур Айратович"]
[207,"0004Ти-…2015","Мухаметшин Ильсаф Рифкатевич"]
[207,"0005Ти-…2015","Цевелёв Глеб Владимирович"]
[207,"0006Ти-…2015","Волина Юлия Андреевна"]
[207,"0007Ти-…2015","Куприянова Мария Александровна"]
[207,"0008Ти-…2015","Перов Константин Евгеньевич"]
[207,"0009Ти-…2015","Зубкова Евгения Юрьевна"]
[207,"0010Ти-…2015","Филипов Константин Дмитриевич"]
[207,"0011Ти-…2015","Хайретдинова Рузия Рашидовна"]
[207,"0012Ти-…2015","Оброкова Милена Николаевна"]
[209,"0001Юрз-…2015","Воробьева Светлана Петровна"]
[209,"0002Юрз-…2015","Намисник Даниил Юрьевич"]
[209,"0003Юрз-…2015","Имулов Евгений Сергеевич"]
[209,"0004Юрз-…2015","Николаев Станислав Александрович"]
[209,"0005Юрз-…2015","Мироничева Александра Александровна"]
[209,"0006Юрз-…2015","Григорьев Алексей Владиславович"]
[209,"0007Юрз-…2015","Сорокина Юлия Алексеевна"]
[209,"0008Юрз-…2015","Зинковская Ирина Игоревна"]
[209,"0009Юрз-…2015","Солихова Лилия Рафаиловне"]
[209,"0010Юрз-…2015","Хисамов Радик Альбертович"]
[209,"0011Юрз-…2015","Мухаметзянова Альбина Рафагатовна"]
[209,"0012Юрз-…2015","Климина Кристина Михайловна"]
[209,"0013Юрз-…2015","Рожкова Полина Дмитривна"]
[209,"0014Юрз-…2015","Столярова Нина Александровна"]
[209,"0015Юрз-…2015","Арифуллова Алсу Радиковна"]
[209,"0016Юрз-…2015","Аминова Алина Джамильевна"]
[209,"0017Юрз-…2015","Комисарова Екатерина Игоревна"]
[209,"0018Юрз-…2015","Бабатеева Елена Максимовна"]
[209,"0019Юрз-…2015","Тюрина Валентина Сергеевна"]
[209,"0020Юрз-…2015","Наумов Виталий Константинович"]
[209,"0021Юрз-…2015","Сапожников Андрей Игоревич"]
[210,"0001Исз-…2015","Александрова Наталия Александровна"]
[210,"0002Исз-…2015","Тарабарина Юлия Александровна"]
[213,"0001ФКз-…2015","Тишова Ася Вениаминовна"]
[213,"0002ФКз-…2015","Шлейков Александр Викторович"]
[213,"0003ФКз-…2015","Фазылов Роберт Камилович"]
[213,"0004ФКз-…2015","Сейфетдинов Ильяс Ренатович"]
[213,"0005ФКз-…2015","Арискин Сергей Александрович"]
[213,"0006ФКз-…2015","Андикаев Михаил Евгеньевич"]
[213,"0007ФКз-…2015","Воронин Алексей Юрьевич"]
[213,"0008ФКз-…2015","Маркушин Андрей Владимирович"]
[213,"0009ФКз-…2015","Вьюнова Екатерина Викторовна"]
[213,"0010ФКз-…2015","Синчинов Сергей Юрьевич"]
[213,"0011ФКз-…2015","Попов николай Анатольевич"]
[213,"0012ФКз-…2015","Гурылёв Михаил Алексеевич"]
[215,"0001Рлз-…2015","Ивасишин Владислав Вадимович"]
[215,"0002Рлз-…2015","Лялина Анна Александровна"]
[215,"0003Рлз-…2015","Шигапова Анися Рифкатовна"]
[215,"0004Рлз-…2015","Игошина Александра Александровна"]
[215,"0005Рлз-…2015","Булатов Айрат Наилевич"]
[215,"0006Рлз-…2015","Кадирова Алина Абдулловна"]
[217,"0001Доз-…2015","Хайруллова Елена Александровна"]
[217,"0002Доз-…2015","Венско Ольга Константиновна"]
[217,"0003Доз-…2015","Улитина Екатерина Алексеевна"]
[217,"0004Доз-…2015","Турухина Наталья Николаевна"]
[217,"0005Доз-…2015","Зимина Мария Евгеньевна"]
[217,"0006Доз-…2015","Шивлягина Юлия Владимировна"]
[217,"0007Доз-…2015","Григорьева Ирина Александровна"]
[217,"0008Доз-…2015","Павлова Анна Николаевна"]
[217,"0009Доз-…2015","Казакова Ольга Ивановна"]
[217,"0010Доз-…2015","Александрова Наталия Александровна"]
[217,"0011Доз-…2015","Фахрутдинова Екатерина Павловна"]
[217,"0012Доз-…2015","Горячева Марина Владимировна"]
[217,"0013Доз-…2015","Мунирова Регина Мухтаровна"]
[217,"0014Доз-…2015","Куликова Лилия Мнировна"]
[217,"0015Доз-…2015","Долдолова Патима Сафар кызы"]
[217,"0016Доз-…2015","Алексеева Мерзия Манафовна"]
[217,"0017Доз-…2015","Нейчева Елена Алексеевна"]
[217,"0018Доз-…2015","Сайфуллина Наталья Александровна"]
[217,"0019Доз-…2015","Моисеенко Ксения Олеговна"]
[217,"0020Доз-…2015","Ашанина Ксения Вячеславовна"]
[217,"0021Доз-…2015","Елькина Надежда Анатольевна"]
[217,"0022Доз-…2015","Пучкова Светлана Николаевна"]
[217,"0023Доз-…2015","Хаярова Елена Анатолиевна"]
[217,"0024Доз-…2015","Андриянова Марина Михайловна"]
[217,"0025Доз-…2015","Кисанова Ольга Анатольевна"]
[217,"0026Доз-…2015","Иванова Лилия Сергеевна"]
[217,"0027Доз-…2015","Курмашова Алина Капдуловна"]
[217,"0028Доз-…2015","Карягина Ирина Петровна"]
[217,"0029Доз-…2015","Лобанова Светлана Викторовна"]
[219,"0001Ноз-…2015","Пригарина Олеся Евгеньевна"]
[219,"0002Ноз-…2015","Смирнова Ирина Сергеевна"]
[219,"0003Ноз-…2015","Шарипзянова Лилия Гаптельхаковна"]
[219,"0004Ноз-…2015","Морозова Наталья Александровна"]
[219,"0005Ноз-…2015","Куликова Лилия Мнировна"]
[219,"0006Ноз-…2015","Андреева Анастасия Викторовна"]
[219,"0007Ноз-…2015","Шигапова Анися Рифкатовна"]
[219,"0008Ноз-…2015","Елфимчева Мария Сергеевна"]
[219,"0009Ноз-…2015","Андриянова Марина Михайловна"]
[219,"0010Ноз-…2015","Алферьева-Термсикос Валерия Борисовна"]
[219,"0011Ноз-…2015","Данякина Екатерина Сергеевна"]
[219,"0012Ноз-…2015","Лобенская София Владимировна"]
[221,"0001Тз-…2015","Полякова Наталья Владимировна"]
[221,"0002Тз-…2015","Алексеева Елена Васильевна"]
[221,"0003Тз-…2015","Грачев Александр Николаевич"]
[221,"0004Тз-…2015","Елькина Надежда Анатольевна"]
[221,"0005Тз-…2015","Ефремов Сергей Анатольевич"]
[221,"0006Тз-…2015","Егорова Дарья Андреевна"]
[225,"0001Мз-…2015","Авасева Наталья Николаевна"]
[225,"0002Мз-…2015","Чуйкина Екатерина Сергеевна"]
[225,"0003Мз-…2015","Чуйкина Анна Сергеевна"]
[225,"0004Мз-…2015","Рыкина Дарья Александровна"]
[225,"0005Мз-…2015","Сальникова Кристина Александровна"]
[227,"0001Инмз-…2015","Фомин Владимир Евгеньевич"]
[227,"0002Инмз-…2015","Грачев Александр Николаевич"]
[227,"0003Инмз-…2015","Чуйкина Екатерина Сергеевна"]
[227,"0004Инмз-…2015","Чуйкина Анна Сергеевна"]
[227,"0005Инмз-…2015","Абрамова Екатерина Олеговна"]
[227,"0006Инмз-…2015","Матюшина Алёна Владимировна"]
[227,"0007Инмз-…2015","Заключнова Светлана Александровна"]
[230,"0001Тез-…2015","Верёвкин Эдуард Викторович"]
[232,"0001Самз-…2015","Слободенюк Данила Павлович"]
[232,"0002Самз-…2015","Зайнутдинов Эмиль Дамирович"]
[232,"0003Самз-…2015","Пахомов Евгений Владимирович"]
[232,"0004Самз-…2015","Верёвкин Эдуард Викторович"]
[233,"0001Дпдз-…2015","Слободенюк Наталья Александовна"]
[233,"0002Дпдз-…2015","Морозова Наталья Александровна"]
[233,"0003Дпдз-…2015","Егорова Дарья Андреевна"]
[233,"0004Дпдз-…2015","Зинковская Ирина Игоревна"]
[233,"0005Дпдз-…2015","Естриванова Светлана Валериевна"]
[233,"0006Дпдз-…2015","Евстигнеева Екатерина Александровна"]
[233,"0007Дпдз-…2015","Елфимчева Мария Сергеевна"]
[233,"0008Дпдз-…2015","Литвинова Елизавета Михайловна"]
[233,"0009Дпдз-…2015","Голубева Тамара Борисовна"]
[233,"0010Дпдз-…2015","Герасимова Анастасия Николаевна"]
[233,"0011Дпдз-…2015","Егорова Дарья Михайловна"]
[233,"0012Дпдз-…2015","Музыченко Татьяна Антоновна"]
[233,"0013Дпдз-…2015","Демахина Мария Валерьевна"]
[236,"0001Поз-…2015","Романова Елена Александровна"]
[236,"0002Поз-…2015","Улитина Екатерина Алексеевна"]
[236,"0003Поз-…2015","Шивлягина Юлия Владимировна"]
[236,"0004Поз-…2015","Зимина Мария Евгеньевна"]
[236,"0005Поз-…2015","Крюченкова Александра Александровна"]
[236,"0006Поз-…2015","Шарипзянова Лилия Гаптельхаковна"]
[236,"0007Поз-…2015","Смирнова Ирина Сергеевна"]
[236,"0008Поз-…2015","Абдряхимова Лэйсэн Шамилевна"]
[236,"0009Поз-…2015","Полякова Анастасия Александровна"]
[236,"0010Поз-…2015","Долдолова Патима Сафар кызы"]
[236,"0011Поз-…2015","Селиверстова Юлия Николаевна"]
[236,"0012Поз-…2015","Солихова Лилия Рафаиловне"]
[236,"0013Поз-…2015","Мухаметзянова Альбина Рафагатовна"]
[236,"0014Поз-…2015","Климина Елена Михайловна"]
[236,"0015Поз-…2015","Скрипина Юлия Николаевна"]
[236,"0016Поз-…2015","Мякишева Ирина Владимировна"]
[236,"0017Поз-…2015","Самышкина Анастасия Александровна"]
[236,"0018Поз-…2015","Абдуллаева Солмаз Замеддин кызы"]
[238,"0001Срз-…2015","Фадеева Лариса Ивановна"]
[238,"0002Срз-…2015","Намисник Даниил Юрьевич"]
[238,"0003Срз-…2015","Селиверстова Юлия Николаевна"]
[238,"0004Срз-…2015","Хисамов Радик Альбертович"]
[238,"0005Срз-…2015","Мухаметзянова Альбина Рафагатовна"]
[238,"0006Срз-…2015","Мухамеджанов Руслан Раушанович"]
[238,"0007Срз-…2015","Петря Валентина Николаевна"]
[238,"0008Срз-…2015","Юсупова Гульнара Индрисовна"]
[238,"0009Срз-…2015","Кузина Анастасия Владимировна"]
[238,"0010Срз-…2015","Фейзова Рамиля Рамилевна"]
[238,"0011Срз-…2015","Яруллина Алсу Амировна"]
[238,"0012Срз-…2015","Рафиуллова Альбина Ахметгеевна"]
[238,"0013Срз-…2015","Усов Евгений Сергеевич"]
[240,"0001Сдоз-…2015","Дельмухаметова Регина Альбертовна"]
[240,"0002Сдоз-…2015","Хайруллова Лилия Наильевна"]
[240,"0003Сдоз-…2015","Старчикова Мария Андреевна"]
[240,"0004Сдоз-…2015","Зимина Мария Евгеньевна"]
[240,"0005Сдоз-…2015","Долдолова Патима Сафар кызы"]
[240,"0006Сдоз-…2015","Шивлягина Юлия Владимировна"]
[240,"0007Сдоз-…2015","Смирнова Ирина Сергеевна"]
[240,"0008Сдоз-…2015","Селиверстова Юлия Николаевна"]
[240,"0009Сдоз-…2015","Анилова Елена Владимировна"]
[240,"0010Сдоз-…2015","Ашанина Ксения Вячеславовна"]
[240,"0011Сдоз-…2015","Шарифзянова Айсылу Вазыховна"]
[240,"0012Сдоз-…2015","Андриянова Марина Михайловна"]
[240,"0013Сдоз-…2015","Скрипина Юлия Николаевна"]
[240,"0014Сдоз-…2015","Давыдова Екатерина Олеговна"]
[240,"0015Сдоз-…2015","Улитина Екатерина Алексеевна"]
[240,"0016Сдоз-…2015","Юсупова Гульнара Индрисовна"]
[240,"0017Сдоз-…2015","Кузина Анастасия Владимировна"]
[240,"0018Сдоз-…2015","Дмитриева Евгения Васильевна"]
[240,"0019Сдоз-…2015","Абдуллаева Айнура Новруз кызы"]
[240,"0020Сдоз-…2015","Абдуллаева Солмаз Замеддин кызы"]
[241,"0001Гз…-2015","Котельников Александр Николаевич"]
[241,"0002Гз…-2015","Прохорова Мария Николаевна"]
[241,"0003Гз…-2015","Андреева Анастасия Викторовна"]
[241,"0004Гз…-2015","Грачев Александр Николаевич"]
[241,"0005Гз…-2015","Заключнова Светлана Александровна"]
[241,"0006Гз…-2015","Рыкина Дарья Александровна"]
[241,"0007Гз…-2015","Долгова Наталья Анатольевна"]
[241,"0008Гз…-2015","Сальникова Кристина Александровна"]
[250,"0001ЦЕЛЕВОЙ Фкбд-…2015","Галныкин Сергей Сергеевич"]
[250,"0002ЦЕЛЕВОЙ Фкбд-…2015","Анисимов Максим Сергеевич"]
[253,"0001ЦЕЛЕВОЙ Нои-…2015","Лисин Алексей Вячеславович"]
[257,"0001ЦЕЛЕВОЙ Ппо-...2015","Турбина Дарья Владимировна"]
[257,"0002ЦЕЛЕВОЙ Ппо-...2015","Кузьмина Анастасия Валерьевна"]
[274,"0001ЦЕЛЕВОЙ Ноз-…2015","Пригарина Олеся Евгеньевна"]
[284,"0001Фдвб-…2015","Таланов Илья Викторович"]
[285,"0001Эпвб-…2015","Таланов Илья Викторович"]
[285,"0002Эпвб-…2015","Хасанова Алсу Ринатовна"]
[286,"0001Жвб-…2015","Коновалова Татьяна Дмитриевна"]
[286,"0002Жвб-…2015","Трифонова Дарья Глебовна"]
[286,"0003Жвб-…2015","Злобин Александр Анатольевич"]
[286,"0004Жвб-…2015","Волкова Юлия Евгеньевна"]
[286,"0005Жвб-…2015","Абдуллаева Роза Видади кызы"]
[286,"0006Жвб-…2015","Зубова Анастасия Евгеньевна"]
[288,"0001Юрвб-…2015","Воробьева Светлана Петровна"]
[288,"0002Юрвб-…2015","Сухова Наталья Валерьевна"]
[288,"0003Юрвб-…2015","Панова Ксения Александровна"]
[290,"0001Гиявб-...2015","Абросимова Дарья Сергеевна"]
[290,"0002Гиявб-...2015","Волкова Юлия Евгеньевна"]
[290,"0003Гиявб-...2015","Саетгалиева Венера Фаридовна"]
[291,"0001Навб-…2015","Семенова Екатерина Сергеевна"]
[291,"0002Навб-…2015","Евсеева Светлана Дмитриевна"]
[291,"0003Навб-…2015","Орешникова Маргарита Алексеевна"]
[291,"0004Навб-…2015","Заббаров Айдар Шафикович"]
[291,"0005Навб-…2015","Семенова Дарья Александровна"]
[291,"0006Навб-…2015","Тихова Виктория Анатольевна"]
[291,"0007Навб-…2015","Варламова Юлия Сергеевна"]
[291,"0008Навб-…2015","Дроздова Яна Андреевна"]
[291,"0009Навб-…2015","Баталеева Светлана Сергеевна"]
[291,"0010Навб-…2015","Матрёнина Анна Сергеевна"]
[291,"0011Навб-…2015","Левашина Виктория Дмитриевна"]
[292,"0001Фавб-…2015","Семенова Екатерина Сергеевна"]
[292,"0002Фавб-…2015","Саетгалиева Венера Фаридовна"]
[292,"0003Фавб-…2015","Орешникова Маргарита Алексеевна"]
[292,"0004Фавб-…2015","Заббаров Айдар Шафикович"]
[292,"0005Фавб-…2015","Тихова Виктория Анатольевна"]
[292,"0006Фавб-…2015","Варламова Юлия Сергеевна"]
[294,"0001Фкбдвб-…2015","Богунов Илья Андреевич"]
[294,"0002Фкбдвб-…2015","Быков Владислав Юрьевич"]
[294,"0003Фкбдвб-…2015","Дудырев Максим Михайлович"]
[295,"0001Рлвб-…2015","Коновалова Татьяна Дмитриевна"]
[295,"0002Рлвб-…2015","Злобин Александр Анатольевич"]
[295,"0003Рлвб-…2015","Волкова Юлия Евгеньевна"]
[295,"0004Рлвб-…2015","Абдуллаева Роза Видади кызы"]
[295,"0005Рлвб-…2015","Князькина Ксения Александровна"]
[295,"0006Рлвб-…2015","Сатина Ирина Сергеевна"]
[295,"0007Рлвб-…2015","Семенова Анастасия Евгеньевна"]
[297,"0001Мэвб-…2015","Сальникова Кристина Александровна"]
[297,"0002Мэвб-…2015","Брюхова Анна Сергеевна"]
[297,"0003Мэвб-…2015","Шкунова Олеся Сергеевна"]
[297,"0004Мэвб-…2015","Харитонова Елена Владимировна"]
[298,"0001Ппанвб-…2015","Дроздова Яна Андреевна"]
[298,"0002Ппанвб-…2015","Сюнькова Алина Вячеславовна"]
[298,"0003Ппанвб-…2015","Разинова Дарья Игоревна"]
[298,"0004Ппанвб-…2015","Бекетова Анжелика Викторовна"]
[298,"0005Ппанвб-…2015","Кулакова-Сонинская Арина Валерьевна"]
[298,"0006Ппанвб-…2015","Исаева Лана Николаевна"]
[298,"0007Ппанвб-…2015","Осипова Екатерина Алексеевна"]
[298,"0008Ппанвб-…2015","Еремина Ксения Валерьевна"]
[298,"0009Ппанвб-…2015","Семенова Дарья Александровна"]
[298,"0010Ппанвб-…2015","Павлова Анастасия Андреевна"]
[298,"0011Ппанвб-…2015","Семенова Екатерина Сергеевна"]
[298,"0012Ппанвб-…2015","Жилкина Юлия Сергеевна"]
[298,"0013Ппанвб-…2015","Иванова Елена Сергеевна"]
[298,"0014Ппанвб-…2015","Баталеева Светлана Сергеевна"]
[298,"0015Ппанвб-…2015","Кашаева Мария Сергеевна"]
[298,"0016Ппанвб-…2015","Холодилина Арина Алексеевна"]
[298,"0017Ппанвб-…2015","Логинова Алина Игоревна"]
[298,"0018Ппанвб-…2015","Матрёнина Анна Сергеевна"]
[298,"0019Ппанвб-…2015","Матвейчук Владислав Владимирович"]
[298,"0020Ппанвб-…2015","Ефремова Екатерина Сергеевна"]
[298,"0021Ппанвб-…2015","Колесникова Анна Константиновна"]
[298,"0022Ппанвб-…2015","Левашина Виктория Дмитриевна"]
[298,"0023Ппанвб-…2015","Мясникова Юлия Михайловна"]
[298,"0024Ппанвб-…2015","Пьянова Екатерина Сергеевна"]
[298,"0025Ппанвб-…2015","Пигалова Маргарита Сергеевна"]
[298,"0026Ппанвб-…2015","Кузнецов Юрий Артемьевич"]
[298,"0027Ппанвб-…2015","Сысолятина Анастасия Сергеевна"]
[298,"0028Ппанвб-…2015","Облезина Елена Сергеевна"]
[298,"0029Ппанвб-…2015","Варламова Полина Геннадьевна"]
[298,"0030Ппанвб-…2015","Комарова Татьяна Вадимовна"]
[298,"0031Ппанвб-…2015","Неустроева Александра Викторовна"]
[299,"0001Скдвб-…2015","Трифонова Дарья Глебовна"]
[300,"0001Упвб-…2015","Панова Ксения Александровна"]
[300,"0002Упвб-…2015","Иванова Мария Дмитриевна"]
[300,"0003Упвб-…2015","Пызыкова Наталья Андреевна"]
[300,"0004Упвб-…2015","Лапшенкова Анна Николаевна"]
[300,"0005Упвб-…2015","Айзатова Эльвира Фиолитовна"]
[300,"0006Упвб-…2015","Коннова Юлия Валерьевна"]
[300,"0007Упвб-…2015","Ежова Анна Сергеевна"]
[300,"0008Упвб-…2015","Ионова Мария Евгеньевна"]
[300,"0009Упвб-…2015","Быков Владислав Юрьевич"]
[300,"0010Упвб-…2015","Антонова Яна Александровна"]
[300,"0011Упвб-…2015","Шарапова Лилия Валерьевна"]
[300,"0012Упвб-…2015","Охотникова Екатерина Сергеевна"]
[300,"0013Упвб-…2015","Павлова Дарья Евгеньевна"]
[300,"0014Упвб-…2015","Петрова Елена Алексеевна"]
[300,"0015Упвб-…2015","Курушин Руслан Русланович"]
[300,"0016Упвб-…2015","Курамшина Мария Владимировна"]
[300,"0017Упвб-…2015","Шипунова Алина Андреевна"]
[300,"0018Упвб-…2015","Каргина Дарья Евгеньевна"]
[300,"0019Упвб-…2015","Герасимова Кристина Юрьевна"]
[300,"0020Упвб-…2015","Морозова Анастасия Валерьевна"]
[300,"0021Упвб-…2015","Шкунова Олеся Сергеевна"]
[300,"0022Упвб-…2015","Захарян Диана Игоревна"]
[300,"0023Упвб-…2015","Кувшинова Виктория Юрьевна"]
[300,"0024Упвб-…2015","Храмова Алёна Олеговна"]
[300,"0025Упвб-…2015","Овчинникова Ольга Юрьевна"]
[300,"0026Упвб-…2015","Барышева Кристина Вячеславовна"]
[300,"0027Упвб-…2015","Савочкина Евгения Владимировна"]
[300,"0028Упвб-…2015","Кулемина Екатерина Александровна"]
[300,"0029Упвб-…2015","Белоусова Алина Александровна"]
[300,"0030Упвб-…2015","Эврикова Ольга Сергеевна"]
[300,"0031Упвб-…2015","Царев Никита Владимирович"]
[300,"0032Упвб-…2015","Иванов Павел Олегович"]
[300,"0033Упвб-…2015","Хуснутдинов Евгений Радикович"]
[300,"0034Упвб-…2015","Захаров Артур Владимирович"]
[300,"0035Упвб-…2015","Проскурович Яков Александрович"]
[300,"0036Упвб-…2015","Сурская Вероника Валерьевна"]
[301,"0001Свб-…2015","Салина Нина Александровна"]
[301,"0002Свб-…2015","Панова Ксения Александровна"]
[301,"0003Свб-…2015","Айзатова Эльвира Фиолитовна"]
[301,"0004Свб-…2015","Петрова Елена Алексеевна"]
[301,"0005Свб-…2015","Сабитова Регина Фяритовна"]
[301,"0006Свб-…2015","Антонова Яна Александровна"]
[301,"0007Свб-…2015","Ежова Анна Сергеевна"]
[301,"0008Свб-…2015","Шипунова Алина Андреевна"]
[301,"0009Свб-…2015","Курушин Руслан Русланович"]
[301,"0010Свб-…2015","Яхудин Айрат Рафикович"]
[301,"0011Свб-…2015","Пызыкова Наталья Андреевна"]
[301,"0012Свб-…2015","Шкунова Олеся Сергеевна"]
[301,"0013Свб-…2015","Коннова Юлья Валерьевна"]
[301,"0014Свб-…2015","Ерасов Евгений Алексеевич"]
[301,"0015Свб-…2015","Курганская Анастасия Алексеевна"]
[302,"0001Фквб-…2015","Волков Андрей Владимирович"]
[302,"0002Фквб-…2015","Быков Владислав Юрьевич"]
[302,"0003Фквб-…2015","Дудырев Максим Михайлович"]
[303,"0001Дпдвб-…2015","Кожевникова Диана Рамисовна"]
[304,"0001Самвб-…2015","Волков Андрей Владимирович"]
[304,"0002Самвб-…2015","Шмагин Виктор Александрович"]
[304,"0003Самвб-…2015","Ерасов Евгений Алексеевич"]
[305,"0001Рвб-…2015","Умарова Эльмира Экриновна"]
[305,"0002Рвб-…2015","Лукина Алина Владимировна"]
[305,"0003Рвб-…2015","Охотникова Екатерина Сергеевна"]
[305,"0004Рвб-…2015","Шипунова Алина Андреевна"]
[306,"0001Жзвб-…2015","Ивасишин Владислав Вадимович"]
[306,"0002Жзвб-…2015","Ефимова Арина Дмитриевна"]
[306,"0003Жзвб-…2015","Рожкова Полина Дмитривна"]
[306,"0004Жзвб-…2015","Аминова Алина Джамильевна"]
[306,"0005Жзвб-…2015","Лукина Валентина Евгеньевна"]
[307,"0001Юрзвб-…2015","Арисов Виталий Валерьевич"]
[307,"0002Юрзвб-…2015","Сулейманов Эрнест Русланович"]
[307,"0003Юрзвб-…2015","Тогаева Анна Андреевна"]
[307,"0004Юрзвб-…2015","Андреев Николай Юрьевич"]
[307,"0005Юрзвб-…2015","Красильникова Мария Владимировна"]
[307,"0006Юрзвб-…2015","Алексеев Николай Сергеевич"]
[307,"0007Юрзвб-…2015","Имулов Евгений Сергеевич"]
[307,"0008Юрзвб-…2015","Царева Ольга Юрьевна"]
[307,"0009Юрзвб-…2015","Биккиняев Ильгиз Ахатович"]
[307,"0010Юрзвб-…2015","Андронова Татьяна Сергеевна"]
[307,"0011Юрзвб-…2015","Адыширинова Хадийджа Азадовна"]
[307,"0012Юрзвб-…2015","Абузярова Рамиля Рустямовна"]
[307,"0013Юрзвб-…2015","Сипатрина Мария Сергеевна"]
[307,"0014Юрзвб-…2015","Фролова Екатерина Ивановна"]
[307,"0015Юрзвб-…2015","Марусич Нелли Ренатвна"]
[307,"0016Юрзвб-…2015","Сорокина Юлия Алексеевна"]
[307,"0017Юрзвб-…2015","Ахтямов Ленар Рамилевич"]
[307,"0018Юрзвб-…2015","Хисамов Радик Альбертович"]
[307,"0019Юрзвб-…2015","Климина Кристина Михайловна"]
[307,"0020Юрзвб-…2015","Рожкова Полина Дмитривна"]
[307,"0021Юрзвб-…2015","Телешев Дмитрий Олегович"]
[307,"0022Юрзвб-…2015","Аминова Алина Джамильевна"]
[307,"0023Юрзвб-…2015","Гафоров Роман Ильдарович"]
[307,"0024Юрзвб-…2015","Столярова Нина Александровна"]
[307,"0025Юрзвб-…2015","Арифуллова Алсу Радиковна"]
[307,"0026Юрзвб-…2015","Жирнова Анастасия Александровна"]
[307,"0027Юрзвб-…2015","Посредникова Елена Дмтриевна"]
[307,"0028Юрзвб-…2015","Шарафутдинова Айгуль Альбертовна"]
[307,"0029Юрзвб-…2015","Каргополова Анастасия Андреевна"]
[307,"0030Юрзвб-…2015","Хабиев Айрат Рямитович"]
[307,"0031Юрзвб-…2015","Наумов Виталий Константинович"]
[307,"0032Юрзвб-…2015","Сапожников Андрей Игоревич"]
[307,"0033Юрзвб-…2015","Осокина Юлия Сергеевна"]
[307,"0034Юрзвб-…2015","Тюрина Валентина Сергеевна"]
[307,"0035Юрзвб-…2015","Кизирбозунц Лиана Григорьевна"]
[307,"0036Юрзвб-…2015","Гячайте Яна Кястутисовна"]
[307,"0037Юрзвб-…2015","Дырова Дарья Владимировна"]
[308,"0001Бзвб-…2015","Сальникова Кристина Александровна"]
[309,"0001Гзвб-…2015","Сальникова Кристина Александровна"]
[310,"0001Иязвб-…2015","Сирачева Галия Иркямовна"]
[310,"0002Иязвб-…2015","Разинова Дарья Игоревна"]
[312,"0001ФКзвб-…2015","Шлейков Александр Викторович"]
[312,"0002ФКзвб-…2015","Фазылов Роберт Камилович"]
[312,"0003ФКзвб-…2015","Синчинов Сергей Юрьевич"]
[313,"0001Рлзвб-…2015","Ивасишин Владислав Вадимович"]
[313,"0002Рлзвб-…2015","Шигапова Анися Рифкатовна"]
[314,"0001Дозвб-..2015","Хайруллова Елена Александровна"]
[314,"0002Дозвб-..2015","Павлова Анна Николаевна"]
[314,"0003Дозвб-..2015","Казакова Ольга Ивановна"]
[314,"0004Дозвб-..2015","Фахрутдинова Екатерина Павловна"]
[314,"0005Дозвб-..2015","Алексеева Мерзия Манафовна"]
[314,"0006Дозвб-..2015","Моисеенко Ксения Олеговна"]
[315,"0001Нозвб-…2015","Шигапова Анися Рифкатовна"]
[316,"0001Тзвб-…2015","Полякова Наталья Владимировна"]
[316,"0002Тзвб-…2015","Егорова Дарья Андреевна"]
[318,"0001Мзвб-…2015","Сальникова Кристина Александровна"]
[319,"0001Инмзвб-…2015","Чуйкина Екатерина Сергеевна"]
[319,"0002Инмзвб-…2015","Абрамова Екатерина Олеговна"]
[320,"0001Тезвб-…2015","Федоров Евгений Викторович"]
[320,"0002Тезвб-…2015","Ахматова Кристина Сргеевна"]
[320,"0003Тезвб-…2015","Верёвкин Эдуард Викторович"]
[321,"0001Дпдзвб-..2015","Морозова Наталья Александровна"]
[321,"0002Дпдзвб-..2015","Слободенюк Наталья Александовна"]
[321,"0003Дпдзвб-..2015","Евстигнеева Екатерина Александровна"]
[321,"0004Дпдзвб-..2015","Егорова Дарья Андреевна"]
[321,"0005Дпдзвб-..2015","Литвинова Елизавета Михайловна"]
[321,"0006Дпдзвб-..2015","Голубева Тамара Борисовна"]
[321,"0007Дпдзвб-..2015","Герасимова Анастасия Николаевна"]
[321,"0008Дпдзвб-..2015","Егорова Дарья Михайловна"]
[321,"0009Дпдзвб-..2015","Музыченко Татьяна Антоновна"]
[322,"0001Самзвб-…2015","Слободенюк Данила Павлович"]
[322,"0002Самзвб-…2015","Пахомов Евгений Владимирович"]
[323,"0001Рзвб-…2015","Турманова Альбина Рустемовна"]
[323,"0002Рзвб-…2015","Медведева Наталья Николаевна"]
[323,"0003Рзвб-…2015","Козлова Екатерина Дмитриевна"]
[323,"0004Рзвб-…2015","Герасимова Анастасия Николаевна"]
[323,"0005Рзвб-…2015","Демахина Мария Валерьевна"]
[324,"0001Позвб-…2015","Романова Елена Александровна"]
[324,"0002Позвб-…2015","Абдряхимова Лэйсэн Шамилевна"]
[324,"0003Позвб-…2015","Климина Елена Михайловна"]
[325,"0001Скдзвб-…2015","Белова Алина Олеговна"]
[326,"0001Срзвб-…2015","Аликбирова Рамзия Газинуровна"]
[326,"0002Срзвб-…2015","Хисамов Радик Альбертович"]
[327,"0001Упзвб-…2015","Ворушилова Ирина Олеговна"]
[327,"0002Упзвб-…2015","Люшина Дарья Александровна"]
[327,"0003Упзвб-…2015","Аликбирова Рамзия Газинуровна"]
[327,"0004Упзвб-…2015","Даллакян Армен Самвелович"]
[327,"0005Упзвб-…2015","Минтюкова Алена Юрьевна"]
[327,"0006Упзвб-…2015","Березина Екатерина Александровна"]
[327,"0007Упзвб-…2015","Кондратьева Варвара Сргеевна"]
[327,"0008Упзвб-…2015","Чернов Евгений Михайлович"]
[327,"0009Упзвб-…2015","Трифонова Ольга Николаевна"]
[327,"0010Упзвб-…2015","Галяутдинова Элина Фанилевна"]
[327,"0011Упзвб-…2015","Ламзина Наталия Александровна"]
[327,"0012Упзвб-…2015","Гаранина Екатрина Дмитриевна"]
[327,"0013Упзвб-…2015","Лобанов Александр Сергеевич"]
[327,"0014Упзвб-…2015","Ахмерова Адиля Рафиковна"]
[327,"0015Упзвб-…2015","Столярова Нина Александровна"]
[327,"0016Упзвб-…2015","Илюхин Алексей Юрьевич"]
[327,"0017Упзвб-…2015","Кудрявцева Оксана Юрьевна"]
[327,"0018Упзвб-…2015","Маслова Екатерина Вячеславовна"]
[327,"0019Упзвб-…2015","Бархаева Альбина Рамилевна"]
[328,"0001Сзвб-…2015","Аликбирова Рамзия Газинуровна"]
[328,"0002Сзвб-…2015","Турманова Альбина Рустемовна"]
[328,"0003Сзвб-…2015","Михайлова Любовь Юрьевна"]
[328,"0004Сзвб-…2015","Гаранина Екатрина Дмитриевна"]
[328,"0005Сзвб-…2015","Столярова Нина Александровна"]
[328,"0006Сзвб-…2015","Кудрявцева Оксана Юрьевна"]
[328,"0007Сзвб-…2015","Бархаева Альбина Рамилевна"]
[329,"0001Сдозвб-…2015","Алтынбаева Анастасия Михайлова"]
[329,"0002Сдозвб-…2015","Анилова Елена Владимировна"]
[329,"0003Сдозвб-…2015","Шарифзянова Айсылу Вазыховна"]
[329,"0004Сдозвб-…2015","Фирсова Надежда Андреевна"]
[329,"0005Сдозвб-…2015","Реуцкая Ирина Андреевна"]
[329,"0006Сдозвб-…2015","Давыдова Екатерина Олеговна"]
[329,"0007Сдозвб-…2015","Кондратьева Дарья Викторовна"]
[329,"0008Сдозвб-…2015","Убанеева Анастасия Валерьевна"]
[329,"0009Сдозвб-…2015","Сулейманова Роза Рафиковна"]
[334,"0001Фкм-…2015","Малова Анна Николаевна"]
[334,"0002Фкм-…2015","Биржевая Анна Олеговна"]
[334,"0003Фкм-…2015","Мансуров Алмаз Павлович"]
[334,"0004Фкм-…2015","Баринова Екатерина Олеговна"]
[334,"0005Фкм-…2015","Шелтаганова Анастасия Вячеславовна"]
[336,"0001Днм-…2015","Мошенскова Виктория Владимировна"]
[336,"0002Днм-…2015","Алевтдинова Марьям Рифкатовна"]
[336,"0003Днм-…2015","Левина Елена Сергеевна"]
[336,"0004Днм-…2015","Старшова Мария Олеговна"]
[336,"0005Днм-…2015","Хисамова Лилия Рустамовна"]
[336,"0006Днм-…2015","Петухова Екатерина Александровна"]
[336,"0007Днм-…2015","Хилова Анна Юрьевна"]
[336,"0008Днм-…2015","Володина Екатерина Олеговна"]
[339,"0001Пом-…2015","Зотова Елена Александровна"]
[339,"0002Пом-…2015","Мерте Ксения Яковлевна"]
[339,"0003Пом-…2015","Кондратьева Юлия Валерьевна"]
[340,"0001Рлмз-…2015","Барзанова Марина Юрьевна"]
[340,"0002Рлмз-…2015","Кондратьева Юлия Валерьевна"]
[341,"0001Гхмз-...2015","Бексаева Светлана Насыховна"]
[342,"0001Номз-…2015","Мошенскова Виктория Владимировна"]
[345,"0001Спдмз-…2015","Максимова Ольга Евгеньевна"]
[345,"0002Спдмз-…2015","Ефимова Оксана Евгеньевна"]
[345,"0003Спдмз-…2015","Пайдутова Елена Николаевна"]
[345,"0004Спдмз-…2015","Зотова Елена Александровна"]
[345,"0005Спдмз-…2015","Сагдеева Лилия Абдулхаковна"]
[346,"0001Помз-…2015","Солянников Павел Александрович"]
[346,"0002Помз-…2015","Максимова Ольга Евгеньевна"]
[346,"0003Помз-…2015","Мерте Ксения Яковлевна"]
[346,"0004Помз-…2015","Пискунов Денис Вячеславович"]
[346,"0005Помз-…2015","Шмелёва Анастасия Олеговна"]
[346,"0006Помз-…2015","Кондратьева Юлия Валерьевна"]
[370,"0001Днмвб-…2015","Алевтдинова Марьям Рифкатовна"]
[370,"0002Днмвб-…2015","Володина Екатерина Олеговна"]
[377,"0001Гпмзвб-…2015","Бережкова Виктория Игоревна"]
[379,"0001Пюмзвб-…2015","Костяева Дарья Вадимовна"]
[379,"0002Пюмзвб-…2015","Шатрова Дарья Сергеевна"]
[379,"0003Пюмзвб-…2015","Шарафутдинова Лилия Гайсатовна"]
[379,"0004Пюмзвб-…2015","Зиновьева Людмила Петровна"]
[379,"0005Пюмзвб-…2015","Арбузова Анастасия Александровна"]
[379,"0006Пюмзвб-…2015","Каткова Елена Александровна"]
[379,"0007Пюмзвб-…2015","Вишнякова Анастасия Александровна"]
[379,"0008Пюмзвб-…2015","Мошков Николай Петрович"]
[379,"0009Пюмзвб-…2015","Кузнецов Владимир Александрович"]
[379,"0010Пюмзвб-…2015","Радушка Евгения Николаевна"]
[379,"0011Пюмзвб-…2015","Копьев Петр Игоревич"]
[379,"0012Пюмзвб-…2015","Шикина Ксения Владимировна"]
[379,"0013Пюмзвб-…2015","Шерифзянова Гульнара Фаниельевна"]
[379,"0014Пюмзвб-…2015","Землемерова Галина Генадьевна"]
[379,"0015Пюмзвб-…2015","Юнушева Алсу Абдрауфовна"]
[381,"0001Юрзвб-…2015 ВПО","Дубова Ольга Евгеньевна"]
[381,"0002Юрзвб-…2015 ВПО","Дмитриева Яна Олеговна"]
[381,"0003Юрзвб-…2015 ВПО","Ильина Дарья Станиславовна"]
[381,"0004Юрзвб-…2015 ВПО","Николаев Станислав Александрович"]
[381,"0005Юрзвб-…2015 ВПО","Копьев Петр Игоревич"]
[381,"0006Юрзвб-…2015 ВПО","Мустафин Ринат Касымович"]
[384,"0001Иязвб-…2015 ВПО","Малярова Ирина Суреновна"]
[384,"0002Иязвб-…2015 ВПО","Ковтонюк Наталья Сергеевна"]
[388,"0001Дозвб-…2015 ВПО","Голова Гульнара Вякифовна"]
[388,"0002Дозвб-…2015 ВПО","Сибятуллова Ирина Николаевна"]
[389,"0001Нозвб-…2015 ВПО","Голова Гульнара Вякифовна"]
[394,"0001Исмзвб-…2015","Маськова Юлия Николаевна"]
[395,"0001Гхмзвб-...2015","Бексаева Светлана Насыховна"]
[397,"0001Рлмзвб-…2015","Барзанова Марина Юрьевна"]
[398,"0001Уосмзввб","Кондратьева Надежда Александрвна"]
[398,"0002Уосмзввб","Архипов Андрей Александрович"]
[405,"0001Темзвб-…2015","Фёдоров Николай Александрович"]
[405,"0002Темзвб-…2015","Ахматова Кристина Сргеевна"]
[409,"0001Позвб-…2015 ВПО","Замалтдинов Ильдар Рафаэлевич"]
[409,"0002Позвб-…2015 ВПО","Ганина Екатерина Сергеевна"]
[409,"0003Позвб-…2015 ВПО","Голова Гульнара Вякифовна"]
[410,"0001Спдмзвб-…2015","Максимова Ольга Евгеньевна"]
[410,"0002Спдмзвб-…2015","Ефимова Оксана Евгеньевна"]
[411,"0001Помзвб-…2015","Максимова Ольга Евгеньевна"]
[411,"0002Помзвб-…2015","Пискунов Денис Вячеславович"]
[411,"0003Помзвб-…2015","Шмелёва Анастасия Олеговна"]
[415,"0001Упзвб-…2015 ВПО","Бекерова Эльмира Мустафовна"]
[416,"0001Упомзвб-…2015","Федякина Лариса Александровна"]
[417,"0001Упмзвб-…2015","Бекерова Эльмира Мустафовна"]
[417,"0002Упмзвб-…2015","Илюхина Ирина Васильевна"]
[420,"0001Сдозвб-…2015 ВПО","Ермолаева Анна Александровна"]
[448,"0001КРЫМ Срз-…2015","Кузнецова Юлия Мянсуровна"]

{"sheet":"Template","index":4,"n_rows":12,"n_cols":8,"rows_kept":12,"hidden":true}
[]
["Институт / факультет",{"$nulls":6},"&department"]
[]
[]
["Направление подготовки / специальность",{"$nulls":6},"&speciality"]
[]
["Пофамильный список подавших заявления:"]
[]
[null,"&StudyConditions"]
[null,"План","&plan"]
[null,"Подано             ",0]
[null,"Конкурс",{"$f":"IF(C10=0,\"ошибка вычисления\",C11/C10)","v":{"$error":"#VALUE!"}}]

{"sheet":"Строки подключения","index":5,"n_rows":10,"n_cols":4,"rows_kept":10,"hidden":true}
["#","DomainName","ConnectionString","v1.2"]
[1,"SS.LOCAL","OLEDB;Provider=SQLOLEDB.1;Trusted_connection=yes;Initial Catalog=edu_SQL_Storage;Data Source=192.168.18.201\\sql"]
[2,"SC.LOCAL","OLEDB;Provider=SQLOLEDB.1;Trusted_connection=yes;Initial Catalog=edu_SQL_Storage;Data Source=192.168.18.201\\sql"]
[3,"SPDEV.LOCAL","OLEDB;Provider=SQLOLEDB.1;Trusted_connection=yes;Initial Catalog=edu_SQL_Storage;Data Source=iis\\sql"]
[4,"MGPU.RU","OLEDB;Provider=SQLOLEDB.1;Trusted_connection=yes;Initial Catalog=edu_SQL_Storage;Data Source=mssql-edu.on.mgpu.ru"]
[5,"SPORTACADEM.RU","OLEDB;Provider=SQLOLEDB.1;Trusted_connection=yes;Initial Catalog=edu_SQL_Storage;Data Source=srv-sql-01\\asuup"]
[6,"MGPPU.LOCAL","OLEDB;Provider=SQLOLEDB.1;Trusted_connection=yes;Initial Catalog=edu_SQL_Storage;Data Source=SQL02\\sql"]
[7,"PUSHKIN.INSTITUTE","OLEDB;Provider=SQLOLEDB.1;Trusted_connection=yes;Initial Catalog=edu_SQL_Storage;Data Source=MSSQL-DB1\\MSSQL1"]
[8,"ULSPU.RU","OLEDB;Provider=SQLOLEDB.1;Trusted_connection=yes;Initial Catalog=edu_SQL_Storage;Data Source=WMSQL.ulspu.ru"]
[null,"                      "]